Workbook

Sheet SUIVI GLOABAL VENTE
E1: FICHE DE SUIVI VENTE GLOBALE
A3: N°Compte | B3: Entreprise | C3: Libellé | D3: N°Bon | E3: Cartons Vendus | F3: Date | G3: Montant | H3: Situation | I3: Versement total | J3: Dernier Versement | K3: Date dernier Versement | L3: Solde | M3: Délai retardé | N3: Ratio
A4: C001 | B4: Ousmane gado | C4: =A:A&B:B -> C001Ousmane gado | D4: 1 | E4: 300 | F4: 2018-07-10 | G4: =4000*Tableau1[[#This Row],[Cartons Vendus]] -> 1200000 | H4: =IF(AND(ISBLANK(A4),E4<>0,G4<40000),"échantillon", IF(AND(G4>0,G4=I4,G4=J4,A4<>0,F4=K4),"Payé en Espèce", IF(AND(I4<G4,A4<>0,I4>=J4,TODAY()-F4<45),"Nouvelle Créance", IF(AND(I4<G4,A4<>0,I4>=J4,TODAY()-F4>=45),"Ancienne Créance", IF(AND(G4=I4,A4<>0,I4>=J4,J4>0,K4-F4>0),"Rembourssement Terminé", "Erreur"))))) -> Rembourssement Terminé | I4: 1200000 | J4: 300000 | K4: 2018-08-05 | L4: =Tableau1[[#This Row],[Montant]]-Tableau1[[#This Row],[Versement total]] -> 0 | M4: =IF(Tableau1[[#This Row],[Montant]]>Tableau1[[#This Row],[Versement total]],TODAY()-Tableau1[[#This Row],[Date]],Tableau1[[#This Row],[Date dernier Versement]]-Tableau1[[#This Row],[Date]]) -> 26 | N4: =Tableau1[[#This Row],[Versement total]]/Tableau1[[#This Row],[Montant]] -> 1
A5: C002 | B5: Balatane | C5: C002Balatane | D5: 2 | E5: 400 | F5: 2018-07-10 | G5: =4000*Tableau1[[#This Row],[Cartons Vendus]] -> 1600000 | H5: Rembourssement Terminé | I5: 1600000 | J5: 600000 | K5: 2018-09-03 | L5: =Tableau1[[#This Row],[Montant]]-Tableau1[[#This Row],[Versement total]] -> 0 | M5: =IF(Tableau1[[#This Row],[Montant]]>Tableau1[[#This Row],[Versement total]],TODAY()-Tableau1[[#This Row],[Date]],Tableau1[[#This Row],[Date dernier Versement]]-Tableau1[[#This Row],[Date]]) -> 55 | N5: =Tableau1[[#This Row],[Versement total]]/Tableau1[[#This Row],[Montant]] -> 1
A6: C003 | B6: Sani | C6: C003Sani | D6: 3 | E6: 500 | F6: 2018-07-11 | G6: =4000*Tableau1[[#This Row],[Cartons Vendus]] -> 2000000 | H6: Payé en Espèce | I6: 2000000 | J6: 2000000 | K6: 2018-07-11 | L6: =Tableau1[[#This Row],[Montant]]-Tableau1[[#This Row],[Versement total]] -> 0 | M6: =IF(Tableau1[[#This Row],[Montant]]>Tableau1[[#This Row],[Versement total]],TODAY()-Tableau1[[#This Row],[Date]],Tableau1[[#This Row],[Date dernier Versement]]-Tableau1[[#This Row],[Date]]) -> 0 | N6: =Tableau1[[#This Row],[Versement total]]/Tableau1[[#This Row],[Montant]] -> 1
A7: C004 | B7: Izrafil | C7: C004Izrafil | D7: 4 | E7: 365 | F7: 2018-07-12 | G7: =4000*Tableau1[[#This Row],[Cartons Vendus]] -> 1460000 | H7: Payé en Espèce | I7: 1460000 | J7: 1460000 | K7: 2018-07-12 | L7: =Tableau1[[#This Row],[Montant]]-Tableau1[[#This Row],[Versement total]] -> 0 | M7: =IF(Tableau1[[#This Row],[Montant]]>Tableau1[[#This Row],[Versement total]],TODAY()-Tableau1[[#This Row],[Date]],Tableau1[[#This Row],[Date dernier Versement]]-Tableau1[[#This Row],[Date]]) -> 0 | N7: =Tableau1[[#This Row],[Versement total]]/Tableau1[[#This Row],[Montant]] -> 1
A8: C005 | B8: Adamou Yaro | C8: C005Adamou Yaro | D8: 5 | E8: 1000 | F8: 2018-07-15 | G8: =4000*Tableau1[[#This Row],[Cartons Vendus]] -> 4000000 | H8: Rembourssement Terminé | I8: 4000000 | J8: 4000000 | K8: 2018-08-05 | L8: =Tableau1[[#This Row],[Montant]]-Tableau1[[#This Row],[Versement total]] -> 0 | M8: =IF(Tableau1[[#This Row],[Montant]]>Tableau1[[#This Row],[Versement total]],TODAY()-Tableau1[[#This Row],[Date]],Tableau1[[#This Row],[Date dernier Versement]]-Tableau1[[#This Row],[Date]]) -> 21 | N8: =Tableau1[[#This Row],[Versement total]]/Tableau1[[#This Row],[Montant]] -> 1
A9: C006 | B9: Mohamedine | C9: C006Mohamedine | D9: 6 | E9: 400 | F9: 2018-07-18 | G9: =4000*Tableau1[[#This Row],[Cartons Vendus]] -> 1600000 | H9: Rembourssement Terminé | I9: 1600000 | J9: 600000 | K9: 2018-08-13 | L9: =Tableau1[[#This Row],[Montant]]-Tableau1[[#This Row],[Versement total]] -> 0 | M9: =IF(Tableau1[[#This Row],[Montant]]>Tableau1[[#This Row],[Versement total]],TODAY()-Tableau1[[#This Row],[Date]],Tableau1[[#This Row],[Date dernier Versement]]-Tableau1[[#This Row],[Date]]) -> 26 | N9: =Tableau1[[#This Row],[Versement total]]/Tableau1[[#This Row],[Montant]] -> 1
A10: C007 | B10: Elhadj Moctar | C10: C007Elhadj Moctar | D10: 7 | E10: 1000 | F10: 2018-07-18 | G10: =4000*Tableau1[[#This Row],[Cartons Vendus]] -> 4000000 | H10: Payé en Espèce | I10: 4000000 | J10: 4000000 | K10: 2018-07-18 | L10: =Tableau1[[#This Row],[Montant]]-Tableau1[[#This Row],[Versement total]] -> 0 | M10: =IF(Tableau1[[#This Row],[Montant]]>Tableau1[[#This Row],[Versement total]],TODAY()-Tableau1[[#This Row],[Date]],Tableau1[[#This Row],[Date dernier Versement]]-Tableau1[[#This Row],[Date]]) -> 0 | N10: =Tableau1[[#This Row],[Versement total]]/Tableau1[[#This Row],[Montant]] -> 1
A11: C004 | B11: Izrafil | C11: C004Izrafil | D11: 8 | E11: 400 | F11: 2018-07-18 | G11: =4000*Tableau1[[#This Row],[Cartons Vendus]] -> 1600000 | H11: Payé en Espèce | I11: 1600000 | J11: 1600000 | K11: 2018-07-18 | L11: =Tableau1[[#This Row],[Montant]]-Tableau1[[#This Row],[Versement total]] -> 0 | M11: =IF(Tableau1[[#This Row],[Montant]]>Tableau1[[#This Row],[Versement total]],TODAY()-Tableau1[[#This Row],[Date]],Tableau1[[#This Row],[Date dernier Versement]]-Tableau1[[#This Row],[Date]]) -> 0 | N11: =Tableau1[[#This Row],[Versement total]]/Tableau1[[#This Row],[Montant]] -> 1
B12: Hassane Ibrahim | C12: Hassane Ibrahim | E12: 1 | F12: 2018-07-18 | G12: =4000*Tableau1[[#This Row],[Cartons Vendus]] -> 4000 | H12: échantillon | I12: 4000 | J12: 4000 | K12: 2018-07-18 | L12: =Tableau1[[#This Row],[Montant]]-Tableau1[[#This Row],[Versement total]] -> 0 | M12: =IF(Tableau1[[#This Row],[Montant]]>Tableau1[[#This Row],[Versement total]],TODAY()-Tableau1[[#This Row],[Date]],Tableau1[[#This Row],[Date dernier Versement]]-Tableau1[[#This Row],[Date]]) -> 0 | N12: =Tableau1[[#This Row],[Versement total]]/Tableau1[[#This Row],[Montant]] -> 1
A13: C003 | B13: Sani | C13: C003Sani | D13: 9 | E13: 500 | F13: 2018-07-19 | G13: =4000*Tableau1[[#This Row],[Cartons Vendus]] -> 2000000 | H13: Rembourssement Terminé | I13: 2000000 | J13: 400000 | K13: 2018-07-24 | L13: =Tableau1[[#This Row],[Montant]]-Tableau1[[#This Row],[Versement total]] -> 0 | M13: =IF(Tableau1[[#This Row],[Montant]]>Tableau1[[#This Row],[Versement total]],TODAY()-Tableau1[[#This Row],[Date]],Tableau1[[#This Row],[Date dernier Versement]]-Tableau1[[#This Row],[Date]]) -> 5 | N13: =Tableau1[[#This Row],[Versement total]]/Tableau1[[#This Row],[Montant]] -> 1
B14: Ancien Comptable | C14: Ancien Comptable | E14: 1 | F14: 2018-07-20 | G14: =4000*Tableau1[[#This Row],[Cartons Vendus]] -> 4000 | H14: échantillon | I14: 4000 | J14: 4000 | K14: 2018-07-20 | L14: =Tableau1[[#This Row],[Montant]]-Tableau1[[#This Row],[Versement total]] -> 0 | M14: =IF(Tableau1[[#This Row],[Montant]]>Tableau1[[#This Row],[Versement total]],TODAY()-Tableau1[[#This Row],[Date]],Tableau1[[#This Row],[Date dernier Versement]]-Tableau1[[#This Row],[Date]]) -> 0 | N14: =Tableau1[[#This Row],[Versement total]]/Tableau1[[#This Row],[Montant]] -> 1
B15: Envoi à Zinder | C15: Envoi à Zinder | E15: 2 | F15: 2018-07-21 | G15: =4000*Tableau1[[#This Row],[Cartons Vendus]] -> 8000 | H15: échantillon | I15: 8000 | J15: 8000 | K15: 2018-07-21 | L15: =Tableau1[[#This Row],[Montant]]-Tableau1[[#This Row],[Versement total]] -> 0 | M15: =IF(Tableau1[[#This Row],[Montant]]>Tableau1[[#This Row],[Versement total]],TODAY()-Tableau1[[#This Row],[Date]],Tableau1[[#This Row],[Date dernier Versement]]-Tableau1[[#This Row],[Date]]) -> 0 | N15: =Tableau1[[#This Row],[Versement total]]/Tableau1[[#This Row],[Montant]] -> 1
B16: Envoi à Maradi | C16: Envoi à Maradi | E16: 1 | F16: 2018-07-25 | G16: =4000*Tableau1[[#This Row],[Cartons Vendus]] -> 4000 | H16: échantillon | I16: 4000 | J16: 4000 | K16: 2018-07-25 | L16: =Tableau1[[#This Row],[Montant]]-Tableau1[[#This Row],[Versement total]] -> 0 | M16: =IF(Tableau1[[#This Row],[Montant]]>Tableau1[[#This Row],[Versement total]],TODAY()-Tableau1[[#This Row],[Date]],Tableau1[[#This Row],[Date dernier Versement]]-Tableau1[[#This Row],[Date]]) -> 0 | N16: =Tableau1[[#This Row],[Versement total]]/Tableau1[[#This Row],[Montant]] -> 1
B17: Tassiou Rabiou | C17: Tassiou Rabiou | E17: 1 | F17: 2018-07-30 | G17: =4000*Tableau1[[#This Row],[Cartons Vendus]] -> 4000 | H17: échantillon | I17: 4000 | J17: 4000 | K17: 2018-07-30 | L17: =Tableau1[[#This Row],[Montant]]-Tableau1[[#This Row],[Versement total]] -> 0 | M17: =IF(Tableau1[[#This Row],[Montant]]>Tableau1[[#This Row],[Versement total]],TODAY()-Tableau1[[#This Row],[Date]],Tableau1[[#This Row],[Date dernier Versement]]-Tableau1[[#This Row],[Date]]) -> 0 | N17: =Tableau1[[#This Row],[Versement total]]/Tableau1[[#This Row],[Montant]] -> 1
B18: Envoi à Togo | C18: Envoi à Togo | E18: 1 | F18: 2018-07-30 | G18: =4000*Tableau1[[#This Row],[Cartons Vendus]] -> 4000 | H18: échantillon | I18: 4000 | J18: 4000 | K18: 2018-07-30 | L18: =Tableau1[[#This Row],[Montant]]-Tableau1[[#This Row],[Versement total]] -> 0 | M18: =IF(Tableau1[[#This Row],[Montant]]>Tableau1[[#This Row],[Versement total]],TODAY()-Tableau1[[#This Row],[Date]],Tableau1[[#This Row],[Date dernier Versement]]-Tableau1[[#This Row],[Date]]) -> 0 | N18: =Tableau1[[#This Row],[Versement total]]/Tableau1[[#This Row],[Montant]] -> 1
B19: D.G | C19: D.G | E19: 1 | F19: 2018-08-04 | G19: =4000*Tableau1[[#This Row],[Cartons Vendus]] -> 4000 | H19: échantillon | I19: 4000 | J19: 4000 | K19: 2018-08-04 | L19: =Tableau1[[#This Row],[Montant]]-Tableau1[[#This Row],[Versement total]] -> 0 | M19: =IF(Tableau1[[#This Row],[Montant]]>Tableau1[[#This Row],[Versement total]],TODAY()-Tableau1[[#This Row],[Date]],Tableau1[[#This Row],[Date dernier Versement]]-Tableau1[[#This Row],[Date]]) -> 0 | N19: =Tableau1[[#This Row],[Versement total]]/Tableau1[[#This Row],[Montant]] -> 1
A20: C007 | B20: Elhadj Moctar | C20: C007Elhadj Moctar | D20: 10 | E20: 1000 | F20: 2018-08-05 | G20: =4000*Tableau1[[#This Row],[Cartons Vendus]] -> 4000000 | H20: Rembourssement Terminé | I20: 4000000 | J20: 4000000 | K20: 2018-08-08 | L20: =Tableau1[[#This Row],[Montant]]-Tableau1[[#This Row],[Versement total]] -> 0 | M20: =IF(Tableau1[[#This Row],[Montant]]>Tableau1[[#This Row],[Versement total]],TODAY()-Tableau1[[#This Row],[Date]],Tableau1[[#This Row],[Date dernier Versement]]-Tableau1[[#This Row],[Date]]) -> 3 | N20: =Tableau1[[#This Row],[Versement total]]/Tableau1[[#This Row],[Montant]] -> 1
A21: C004 | B21: Izrafil | C21: C004Izrafil | D21: 11 | E21: 500 | F21: 2018-08-05 | G21: =4000*Tableau1[[#This Row],[Cartons Vendus]] -> 2000000 | H21: Rembourssement Terminé | I21: 2000000 | J21: 2000000 | K21: 2018-08-08 | L21: =Tableau1[[#This Row],[Montant]]-Tableau1[[#This Row],[Versement total]] -> 0 | M21: =IF(Tableau1[[#This Row],[Montant]]>Tableau1[[#This Row],[Versement total]],TODAY()-Tableau1[[#This Row],[Date]],Tableau1[[#This Row],[Date dernier Versement]]-Tableau1[[#This Row],[Date]]) -> 3 | N21: =Tableau1[[#This Row],[Versement total]]/Tableau1[[#This Row],[Montant]] -> 1
A22: C001 | B22: Ousmane gado | C22: C001Ousmane gado | D22: 12 | E22: 300 | F22: 2018-08-05 | G22: =4000*Tableau1[[#This Row],[Cartons Vendus]] -> 1200000 | H22: Nouvelle Créance | I22: 800000 | J22: 200000 | K22: 2018-08-25 | L22: =Tableau1[[#This Row],[Montant]]-Tableau1[[#This Row],[Versement total]] -> 400000 | M22: =IF(Tableau1[[#This Row],[Montant]]>Tableau1[[#This Row],[Versement total]],TODAY()-Tableau1[[#This Row],[Date]],Tableau1[[#This Row],[Date dernier Versement]]-Tableau1[[#This Row],[Date]]) -> 30 | N22: =Tableau1[[#This Row],[Versement total]]/Tableau1[[#This Row],[Montant]] -> 0.6666666667
A23: C005 | B23: Adamou Yaro | C23: C005Adamou Yaro | D23: 13 | E23: 1000 | F23: 2018-08-05 | G23: =4000*Tableau1[[#This Row],[Cartons Vendus]] -> 4000000 | H23: Nouvelle Créance | I23: 0 | J23: 0 | L23: =Tableau1[[#This Row],[Montant]]-Tableau1[[#This Row],[Versement total]] -> 4000000 | M23: =IF(Tableau1[[#This Row],[Montant]]>Tableau1[[#This Row],[Versement total]],TODAY()-Tableau1[[#This Row],[Date]],Tableau1[[#This Row],[Date dernier Versement]]-Tableau1[[#This Row],[Date]]) -> 30 | N23: =Tableau1[[#This Row],[Versement total]]/Tableau1[[#This Row],[Montant]] -> 0
B24: Mohamede | C24: Mohamede | E24: 1 | F24: 2018-08-05 | G24: =4000*Tableau1[[#This Row],[Cartons Vendus]] -> 4000 | H24: échantillon | I24: 4000 | J24: 4000 | K24: 2018-08-05 | L24: =Tableau1[[#This Row],[Montant]]-Tableau1[[#This Row],[Versement total]] -> 0 | M24: =IF(Tableau1[[#This Row],[Montant]]>Tableau1[[#This Row],[Versement total]],TODAY()-Tableau1[[#This Row],[Date]],Tableau1[[#This Row],[Date dernier Versement]]-Tableau1[[#This Row],[Date]]) -> 0 | N24: =Tableau1[[#This Row],[Versement total]]/Tableau1[[#This Row],[Montant]] -> 1
A25: C003 | B25: Sani | C25: C003Sani | D25: 14 | E25: 500 | F25: 2018-08-09 | G25: =4000*Tableau1[[#This Row],[Cartons Vendus]] -> 2000000 | H25: Rembourssement Terminé | I25: 2000000 | J25: 1000000 | K25: 2018-08-15 | L25: =Tableau1[[#This Row],[Montant]]-Tableau1[[#This Row],[Versement total]] -> 0 | M25: =IF(Tableau1[[#This Row],[Montant]]>Tableau1[[#This Row],[Versement total]],TODAY()-Tableau1[[#This Row],[Date]],Tableau1[[#This Row],[Date dernier Versement]]-Tableau1[[#This Row],[Date]]) -> 6 | N25: =Tableau1[[#This Row],[Versement total]]/Tableau1[[#This Row],[Montant]] -> 1
B26: Yahouza | C26: Yahouza | E26: 1 | F26: 2018-08-11 | G26: =4000*Tableau1[[#This Row],[Cartons Vendus]] -> 4000 | H26: échantillon | I26: 4000 | J26: 4000 | K26: 2018-08-11 | L26: =Tableau1[[#This Row],[Montant]]-Tableau1[[#This Row],[Versement total]] -> 0 | M26: =IF(Tableau1[[#This Row],[Montant]]>Tableau1[[#This Row],[Versement total]],TODAY()-Tableau1[[#This Row],[Date]],Tableau1[[#This Row],[Date dernier Versement]]-Tableau1[[#This Row],[Date]]) -> 0 | N26: =Tableau1[[#This Row],[Versement total]]/Tableau1[[#This Row],[Montant]] -> 1
A27: C006 | B27: Mohamedine | C27: C006Mohamedine | D27: 15 | E27: 420 | F27: 2018-08-13 | G27: =4000*Tableau1[[#This Row],[Cartons Vendus]] -> 1680000 | H27: Rembourssement Terminé | I27: 1680000 | J27: 1630000 | K27: 2018-08-30 | L27: =Tableau1[[#This Row],[Montant]]-Tableau1[[#This Row],[Versement total]] -> 0 | M27: =IF(Tableau1[[#This Row],[Montant]]>Tableau1[[#This Row],[Versement total]],TODAY()-Tableau1[[#This Row],[Date]],Tableau1[[#This Row],[Date dernier Versement]]-Tableau1[[#This Row],[Date]]) -> 17 | N27: =Tableau1[[#This Row],[Versement total]]/Tableau1[[#This Row],[Montant]] -> 1
A28: C004 | B28: Izrafil | C28: C004Izrafil | D28: 16 | E28: 400 | F28: 2018-08-13 | G28: =4000*Tableau1[[#This Row],[Cartons Vendus]] -> 1600000 | H28: Rembourssement Terminé | I28: 1600000 | J28: 1600000 | K28: 2018-08-15 | L28: =Tableau1[[#This Row],[Montant]]-Tableau1[[#This Row],[Versement total]] -> 0 | M28: =IF(Tableau1[[#This Row],[Montant]]>Tableau1[[#This Row],[Versement total]],TODAY()-Tableau1[[#This Row],[Date]],Tableau1[[#This Row],[Date dernier Versement]]-Tableau1[[#This Row],[Date]]) -> 2 | N28: =Tableau1[[#This Row],[Versement total]]/Tableau1[[#This Row],[Montant]] -> 1
A29: C004 | B29: Izrafil | C29: C004Izrafil | D29: 17 | E29: 400 | F29: 2018-08-25 | G29: =4000*Tableau1[[#This Row],[Cartons Vendus]] -> 1600000 | H29: Rembourssement Terminé | I29: 1600000 | J29: 1600000 | K29: 2018-08-28 | L29: =Tableau1[[#This Row],[Montant]]-Tableau1[[#This Row],[Versement total]] -> 0 | M29: =IF(Tableau1[[#This Row],[Montant]]>Tableau1[[#This Row],[Versement total]],TODAY()-Tableau1[[#This Row],[Date]],Tableau1[[#This Row],[Date dernier Versement]]-Tableau1[[#This Row],[Date]]) -> 3 | N29: =Tableau1[[#This Row],[Versement total]]/Tableau1[[#This Row],[Montant]] -> 1
B30: Gardien | C30: Gardien | E30: 1 | F30: 2018-08-28 | G30: =4000*Tableau1[[#This Row],[Cartons Vendus]] -> 4000 | H30: échantillon | I30: 4000 | J30: 4000 | K30: 2018-08-28 | L30: =Tableau1[[#This Row],[Montant]]-Tableau1[[#This Row],[Versement total]] -> 0 | M30: =IF(Tableau1[[#This Row],[Montant]]>Tableau1[[#This Row],[Versement total]],TODAY()-Tableau1[[#This Row],[Date]],Tableau1[[#This Row],[Date dernier Versement]]-Tableau1[[#This Row],[Date]]) -> 0 | N30: =Tableau1[[#This Row],[Versement total]]/Tableau1[[#This Row],[Montant]] -> 1
A31: C001 | B31: Ousmane gado | C31: C001Ousmane gado | D31: 18 | E31: 300 | F31: 2018-08-30 | G31: =4000*Tableau1[[#This Row],[Cartons Vendus]] -> 1200000 | H31: Nouvelle Créance | I31: 280000 | J31: 280000 | K31: 2018-08-30 | L31: =Tableau1[[#This Row],[Montant]]-Tableau1[[#This Row],[Versement total]] -> 920000 | M31: =IF(Tableau1[[#This Row],[Montant]]>Tableau1[[#This Row],[Versement total]],TODAY()-Tableau1[[#This Row],[Date]],Tableau1[[#This Row],[Date dernier Versement]]-Tableau1[[#This Row],[Date]]) -> 5 | N31: =Tableau1[[#This Row],[Versement total]]/Tableau1[[#This Row],[Montant]] -> 0.2333333333
A32: C007 | B32: Elhadj Moctar | C32: C007Elhadj Moctar | D32: 19 | E32: 2000 | F32: 2018-08-30 | G32: 7800000 | H32: Nouvelle Créance | I32: 7000000 | J32: 7000000 | K32: 2018-09-03 | L32: =Tableau1[[#This Row],[Montant]]-Tableau1[[#This Row],[Versement total]] -> 800000 | M32: =IF(Tableau1[[#This Row],[Montant]]>Tableau1[[#This Row],[Versement total]],TODAY()-Tableau1[[#This Row],[Date]],Tableau1[[#This Row],[Date dernier Versement]]-Tableau1[[#This Row],[Date]]) -> 5 | N32: =Tableau1[[#This Row],[Versement total]]/Tableau1[[#This Row],[Montant]] -> 0.8974358974
A33: C004 | B33: Izrafil | C33: C004Izrafil | D33: 20 | E33: 400 | F33: 2018-09-01 | G33: =4000*Tableau1[[#This Row],[Cartons Vendus]] -> 1600000 | H33: Nouvelle Créance | I33: 1000000 | J33: 1000000 | K33: 2018-09-03 | L33: =Tableau1[[#This Row],[Montant]]-Tableau1[[#This Row],[Versement total]] -> 600000 | M33: =IF(Tableau1[[#This Row],[Montant]]>Tableau1[[#This Row],[Versement total]],TODAY()-Tableau1[[#This Row],[Date]],Tableau1[[#This Row],[Date dernier Versement]]-Tableau1[[#This Row],[Date]]) -> 3 | N33: =Tableau1[[#This Row],[Versement total]]/Tableau1[[#This Row],[Montant]] -> 0.625
A34: C006 | B34: Mohamedine | C34: C006Mohamedine | D34: 21 | E34: 400 | F34: 2018-09-01 | G34: =4000*Tableau1[[#This Row],[Cartons Vendus]] -> 1600000 | H34: =IF(AND(ISBLANK(A34),E34<>0,G34<40000),"échantillon", IF(AND(G34>0,G34=I34,G34=J34,A34<>0,F34=K34),"Payé en Espèce", IF(AND(I34<G34,A34<>0,I34>=J34,TODAY()-F34<45),"Nouvelle Créance", IF(AND(I34<G34,A34<>0,I34>=J34,TODAY()-F34>=45),"Ancienne Créance", IF(AND(G34=I34,A34<>0,I34>=J34,J34>0,K34-F34>0),"Rembourssement Terminé", "Erreur"))))) -> Nouvelle Créance | I34: 0 | J34: 0 | L34: =Tableau1[[#This Row],[Montant]]-Tableau1[[#This Row],[Versement total]] -> 1600000 | M34: =IF(Tableau1[[#This Row],[Montant]]>Tableau1[[#This Row],[Versement total]],TODAY()-Tableau1[[#This Row],[Date]],Tableau1[[#This Row],[Date dernier Versement]]-Tableau1[[#This Row],[Date]]) -> 3 | N34: =Tableau1[[#This Row],[Versement total]]/Tableau1[[#This Row],[Montant]] -> 0
A35: C002 | B35: Balatane | C35: C002Balatane | D35: 22 | E35: 200 | F35: 2018-09-01 | G35: =4000*Tableau1[[#This Row],[Cartons Vendus]] -> 800000 | H35: =IF(AND(ISBLANK(A35),E35<>0,G35<40000),"échantillon", IF(AND(G35>0,G35=I35,G35=J35,A35<>0,F35=K35),"Payé en Espèce", IF(AND(I35<G35,A35<>0,I35>=J35,TODAY()-F35<45),"Nouvelle Créance", IF(AND(I35<G35,A35<>0,I35>=J35,TODAY()-F35>=45),"Ancienne Créance", IF(AND(G35=I35,A35<>0,I35>=J35,J35>0,K35-F35>0),"Rembourssement Terminé", "Erreur"))))) -> Nouvelle Créance | I35: 0 | J35: 0 | L35: =Tableau1[[#This Row],[Montant]]-Tableau1[[#This Row],[Versement total]] -> 800000 | M35: =IF(Tableau1[[#This Row],[Montant]]>Tableau1[[#This Row],[Versement total]],TODAY()-Tableau1[[#This Row],[Date]],Tableau1[[#This Row],[Date dernier Versement]]-Tableau1[[#This Row],[Date]]) -> 3 | N35: =Tableau1[[#This Row],[Versement total]]/Tableau1[[#This Row],[Montant]] -> 0
A36: C005 | B36: Adamou Yaro | C36: C005Adamou Yaro | D36: 23 | E36: 1000 | F36: 2018-09-02 | G36: 3900000 | H36: Nouvelle Créance | I36: 0 | J36: 0 | L36: =Tableau1[[#This Row],[Montant]]-Tableau1[[#This Row],[Versement total]] -> 3900000 | M36: =IF(Tableau1[[#This Row],[Montant]]>Tableau1[[#This Row],[Versement total]],TODAY()-Tableau1[[#This Row],[Date]],Tableau1[[#This Row],[Date dernier Versement]]-Tableau1[[#This Row],[Date]]) -> 2 | N36: =Tableau1[[#This Row],[Versement total]]/Tableau1[[#This Row],[Montant]] -> 0
A37: C003 | B37: Sani | C37: C003Sani | D37: 24 | E37: 437 | F37: 2018-09-02 | G37: =4000*Tableau1[[#This Row],[Cartons Vendus]] -> 1748000 | H37: Nouvelle Créance | I37: 1000000 | J37: 1000000 | K37: 2018-09-03 | L37: =Tableau1[[#This Row],[Montant]]-Tableau1[[#This Row],[Versement total]] -> 748000 | M37: =IF(Tableau1[[#This Row],[Montant]]>Tableau1[[#This Row],[Versement total]],TODAY()-Tableau1[[#This Row],[Date]],Tableau1[[#This Row],[Date dernier Versement]]-Tableau1[[#This Row],[Date]]) -> 2 | N37: =Tableau1[[#This Row],[Versement total]]/Tableau1[[#This Row],[Montant]] -> 0.5720823799
G38: =4000*Tableau1[[#This Row],[Cartons Vendus]] -> 0 | H38: Erreur | I38: 0 | J38: 0 | L38: =Tableau1[[#This Row],[Montant]]-Tableau1[[#This Row],[Versement total]] -> 0 | M38: =IF(Tableau1[[#This Row],[Montant]]>Tableau1[[#This Row],[Versement total]],TODAY()-Tableau1[[#This Row],[Date]],Tableau1[[#This Row],[Date dernier Versement]]-Tableau1[[#This Row],[Date]]) -> 0 | N38: =Tableau1[[#This Row],[Versement total]]/Tableau1[[#This Row],[Montant]] -> 
G39: =4000*Tableau1[[#This Row],[Cartons Vendus]] -> 0 | H39: Erreur | I39: 0 | J39: 0 | L39: =Tableau1[[#This Row],[Montant]]-Tableau1[[#This Row],[Versement total]] -> 0 | M39: =IF(Tableau1[[#This Row],[Montant]]>Tableau1[[#This Row],[Versement total]],TODAY()-Tableau1[[#This Row],[Date]],Tableau1[[#This Row],[Date dernier Versement]]-Tableau1[[#This Row],[Date]]) -> 0 | N39: =Tableau1[[#This Row],[Versement total]]/Tableau1[[#This Row],[Montant]] -> 
G40: =4000*Tableau1[[#This Row],[Cartons Vendus]] -> 0 | H40: Erreur | I40: 0 | J40: 0 | L40: =Tableau1[[#This Row],[Montant]]-Tableau1[[#This Row],[Versement total]] -> 0 | M40: =IF(Tableau1[[#This Row],[Montant]]>Tableau1[[#This Row],[Versement total]],TODAY()-Tableau1[[#This Row],[Date]],Tableau1[[#This Row],[Date dernier Versement]]-Tableau1[[#This Row],[Date]]) -> 0 | N40: =Tableau1[[#This Row],[Versement total]]/Tableau1[[#This Row],[Montant]] -> 
G41: =4000*Tableau1[[#This Row],[Cartons Vendus]] -> 0 | H41: Erreur | I41: 0 | J41: 0 | L41: =Tableau1[[#This Row],[Montant]]-Tableau1[[#This Row],[Versement total]] -> 0 | M41: =IF(Tableau1[[#This Row],[Montant]]>Tableau1[[#This Row],[Versement total]],TODAY()-Tableau1[[#This Row],[Date]],Tableau1[[#This Row],[Date dernier Versement]]-Tableau1[[#This Row],[Date]]) -> 0 | N41: =Tableau1[[#This Row],[Versement total]]/Tableau1[[#This Row],[Montant]] -> 
G42: =4000*Tableau1[[#This Row],[Cartons Vendus]] -> 0 | H42: Erreur | I42: 0 | J42: 0 | L42: =Tableau1[[#This Row],[Montant]]-Tableau1[[#This Row],[Versement total]] -> 0 | M42: =IF(Tableau1[[#This Row],[Montant]]>Tableau1[[#This Row],[Versement total]],TODAY()-Tableau1[[#This Row],[Date]],Tableau1[[#This Row],[Date dernier Versement]]-Tableau1[[#This Row],[Date]]) -> 0 | N42: =Tableau1[[#This Row],[Versement total]]/Tableau1[[#This Row],[Montant]] -> 
G43: =4000*Tableau1[[#This Row],[Cartons Vendus]] -> 0 | H43: Erreur | I43: 0 | J43: 0 | L43: =Tableau1[[#This Row],[Montant]]-Tableau1[[#This Row],[Versement total]] -> 0 | M43: =IF(Tableau1[[#This Row],[Montant]]>Tableau1[[#This Row],[Versement total]],TODAY()-Tableau1[[#This Row],[Date]],Tableau1[[#This Row],[Date dernier Versement]]-Tableau1[[#This Row],[Date]]) -> 0 | N43: =Tableau1[[#This Row],[Versement total]]/Tableau1[[#This Row],[Montant]] -> 
G44: =4000*Tableau1[[#This Row],[Cartons Vendus]] -> 0 | H44: Erreur | I44: 0 | J44: 0 | L44: =Tableau1[[#This Row],[Montant]]-Tableau1[[#This Row],[Versement total]] -> 0 | M44: =IF(Tableau1[[#This Row],[Montant]]>Tableau1[[#This Row],[Versement total]],TODAY()-Tableau1[[#This Row],[Date]],Tableau1[[#This Row],[Date dernier Versement]]-Tableau1[[#This Row],[Date]]) -> 0 | N44: =Tableau1[[#This Row],[Versement total]]/Tableau1[[#This Row],[Montant]] -> 
G45: =4000*Tableau1[[#This Row],[Cartons Vendus]] -> 0 | H45: Erreur | I45: 0 | J45: 0 | L45: =Tableau1[[#This Row],[Montant]]-Tableau1[[#This Row],[Versement total]] -> 0 | M45: =IF(Tableau1[[#This Row],[Montant]]>Tableau1[[#This Row],[Versement total]],TODAY()-Tableau1[[#This Row],[Date]],Tableau1[[#This Row],[Date dernier Versement]]-Tableau1[[#This Row],[Date]]) -> 0 | N45: =Tableau1[[#This Row],[Versement total]]/Tableau1[[#This Row],[Montant]] -> 
G46: =4000*Tableau1[[#This Row],[Cartons Vendus]] -> 0 | H46: Erreur | I46: 0 | J46: 0 | L46: =Tableau1[[#This Row],[Montant]]-Tableau1[[#This Row],[Versement total]] -> 0 | M46: =IF(Tableau1[[#This Row],[Montant]]>Tableau1[[#This Row],[Versement total]],TODAY()-Tableau1[[#This Row],[Date]],Tableau1[[#This Row],[Date dernier Versement]]-Tableau1[[#This Row],[Date]]) -> 0 | N46: =Tableau1[[#This Row],[Versement total]]/Tableau1[[#This Row],[Montant]] -> 
G47: =4000*Tableau1[[#This Row],[Cartons Vendus]] -> 0 | H47: Erreur | I47: 0 | J47: 0 | L47: =Tableau1[[#This Row],[Montant]]-Tableau1[[#This Row],[Versement total]] -> 0 | M47: =IF(Tableau1[[#This Row],[Montant]]>Tableau1[[#This Row],[Versement total]],TODAY()-Tableau1[[#This Row],[Date]],Tableau1[[#This Row],[Date dernier Versement]]-Tableau1[[#This Row],[Date]]) -> 0 | N47: =Tableau1[[#This Row],[Versement total]]/Tableau1[[#This Row],[Montant]] -> 
G48: =4000*Tableau1[[#This Row],[Cartons Vendus]] -> 0 | H48: Erreur | I48: 0 | J48: 0 | L48: =Tableau1[[#This Row],[Montant]]-Tableau1[[#This Row],[Versement total]] -> 0 | M48: =IF(Tableau1[[#This Row],[Montant]]>Tableau1[[#This Row],[Versement total]],TODAY()-Tableau1[[#This Row],[Date]],Tableau1[[#This Row],[Date dernier Versement]]-Tableau1[[#This Row],[Date]]) -> 0 | N48: =Tableau1[[#This Row],[Versement total]]/Tableau1[[#This Row],[Montant]] -> 
G49: =4000*Tableau1[[#This Row],[Cartons Vendus]] -> 0 | H49: Erreur | I49: 0 | J49: 0 | L49: =Tableau1[[#This Row],[Montant]]-Tableau1[[#This Row],[Versement total]] -> 0 | M49: =IF(Tableau1[[#This Row],[Montant]]>Tableau1[[#This Row],[Versement total]],TODAY()-Tableau1[[#This Row],[Date]],Tableau1[[#This Row],[Date dernier Versement]]-Tableau1[[#This Row],[Date]]) -> 0 | N49: =Tableau1[[#This Row],[Versement total]]/Tableau1[[#This Row],[Montant]] -> 
G50: =4000*Tableau1[[#This Row],[Cartons Vendus]] -> 0 | H50: Erreur | I50: 0 | J50: 0 | L50: =Tableau1[[#This Row],[Montant]]-Tableau1[[#This Row],[Versement total]] -> 0 | M50: =IF(Tableau1[[#This Row],[Montant]]>Tableau1[[#This Row],[Versement total]],TODAY()-Tableau1[[#This Row],[Date]],Tableau1[[#This Row],[Date dernier Versement]]-Tableau1[[#This Row],[Date]]) -> 0 | N50: =Tableau1[[#This Row],[Versement total]]/Tableau1[[#This Row],[Montant]] -> 
G51: =4000*Tableau1[[#This Row],[Cartons Vendus]] -> 0 | H51: Erreur | I51: 0 | J51: 0 | L51: =Tableau1[[#This Row],[Montant]]-Tableau1[[#This Row],[Versement total]] -> 0 | M51: =IF(Tableau1[[#This Row],[Montant]]>Tableau1[[#This Row],[Versement total]],TODAY()-Tableau1[[#This Row],[Date]],Tableau1[[#This Row],[Date dernier Versement]]-Tableau1[[#This Row],[Date]]) -> 0 | N51: =Tableau1[[#This Row],[Versement total]]/Tableau1[[#This Row],[Montant]] -> 
G52: =4000*Tableau1[[#This Row],[Cartons Vendus]] -> 0 | H52: Erreur | I52: 0 | J52: 0 | L52: =Tableau1[[#This Row],[Montant]]-Tableau1[[#This Row],[Versement total]] -> 0 | M52: =IF(Tableau1[[#This Row],[Montant]]>Tableau1[[#This Row],[Versement total]],TODAY()-Tableau1[[#This Row],[Date]],Tableau1[[#This Row],[Date dernier Versement]]-Tableau1[[#This Row],[Date]]) -> 0 | N52: =Tableau1[[#This Row],[Versement total]]/Tableau1[[#This Row],[Montant]] -> 
G53: =4000*Tableau1[[#This Row],[Cartons Vendus]] -> 0 | H53: Erreur | I53: 0 | J53: 0 | L53: =Tableau1[[#This Row],[Montant]]-Tableau1[[#This Row],[Versement total]] -> 0 | M53: =IF(Tableau1[[#This Row],[Montant]]>Tableau1[[#This Row],[Versement total]],TODAY()-Tableau1[[#This Row],[Date]],Tableau1[[#This Row],[Date dernier Versement]]-Tableau1[[#This Row],[Date]]) -> 0 | N53: =Tableau1[[#This Row],[Versement total]]/Tableau1[[#This Row],[Montant]] -> 
G54: =4000*Tableau1[[#This Row],[Cartons Vendus]] -> 0 | H54: Erreur | I54: 0 | J54: 0 | L54: =Tableau1[[#This Row],[Montant]]-Tableau1[[#This Row],[Versement total]] -> 0 | M54: =IF(Tableau1[[#This Row],[Montant]]>Tableau1[[#This Row],[Versement total]],TODAY()-Tableau1[[#This Row],[Date]],Tableau1[[#This Row],[Date dernier Versement]]-Tableau1[[#This Row],[Date]]) -> 0 | N54: =Tableau1[[#This Row],[Versement total]]/Tableau1[[#This Row],[Montant]] -> 
G55: =4000*Tableau1[[#This Row],[Cartons Vendus]] -> 0 | H55: Erreur | I55: 0 | J55: 0 | L55: =Tableau1[[#This Row],[Montant]]-Tableau1[[#This Row],[Versement total]] -> 0 | M55: =IF(Tableau1[[#This Row],[Montant]]>Tableau1[[#This Row],[Versement total]],TODAY()-Tableau1[[#This Row],[Date]],Tableau1[[#This Row],[Date dernier Versement]]-Tableau1[[#This Row],[Date]]) -> 0 | N55: =Tableau1[[#This Row],[Versement total]]/Tableau1[[#This Row],[Montant]] -> 
G56: =4000*Tableau1[[#This Row],[Cartons Vendus]] -> 0 | H56: Erreur | I56: 0 | J56: 0 | L56: =Tableau1[[#This Row],[Montant]]-Tableau1[[#This Row],[Versement total]] -> 0 | M56: =IF(Tableau1[[#This Row],[Montant]]>Tableau1[[#This Row],[Versement total]],TODAY()-Tableau1[[#This Row],[Date]],Tableau1[[#This Row],[Date dernier Versement]]-Tableau1[[#This Row],[Date]]) -> 0 | N56: =Tableau1[[#This Row],[Versement total]]/Tableau1[[#This Row],[Montant]] -> 
G57: =4000*Tableau1[[#This Row],[Cartons Vendus]] -> 0 | H57: Erreur | I57: 0 | J57: 0 | L57: =Tableau1[[#This Row],[Montant]]-Tableau1[[#This Row],[Versement total]] -> 0 | M57: =IF(Tableau1[[#This Row],[Montant]]>Tableau1[[#This Row],[Versement total]],TODAY()-Tableau1[[#This Row],[Date]],Tableau1[[#This Row],[Date dernier Versement]]-Tableau1[[#This Row],[Date]]) -> 0 | N57: =Tableau1[[#This Row],[Versement total]]/Tableau1[[#This Row],[Montant]] -> 
G58: =4000*Tableau1[[#This Row],[Cartons Vendus]] -> 0 | H58: Erreur | I58: 0 | J58: 0 | L58: =Tableau1[[#This Row],[Montant]]-Tableau1[[#This Row],[Versement total]] -> 0 | M58: =IF(Tableau1[[#This Row],[Montant]]>Tableau1[[#This Row],[Versement total]],TODAY()-Tableau1[[#This Row],[Date]],Tableau1[[#This Row],[Date dernier Versement]]-Tableau1[[#This Row],[Date]]) -> 0 | N58: =Tableau1[[#This Row],[Versement total]]/Tableau1[[#This Row],[Montant]] -> 
G59: =4000*Tableau1[[#This Row],[Cartons Vendus]] -> 0 | H59: Erreur | I59: 0 | J59: 0 | L59: =Tableau1[[#This Row],[Montant]]-Tableau1[[#This Row],[Versement total]] -> 0 | M59: =IF(Tableau1[[#This Row],[Montant]]>Tableau1[[#This Row],[Versement total]],TODAY()-Tableau1[[#This Row],[Date]],Tableau1[[#This Row],[Date dernier Versement]]-Tableau1[[#This Row],[Date]]) -> 0 | N59: =Tableau1[[#This Row],[Versement total]]/Tableau1[[#This Row],[Montant]] -> 
G60: =4000*Tableau1[[#This Row],[Cartons Vendus]] -> 0 | H60: Erreur | I60: 0 | J60: 0 | L60: =Tableau1[[#This Row],[Montant]]-Tableau1[[#This Row],[Versement total]] -> 0 | M60: =IF(Tableau1[[#This Row],[Montant]]>Tableau1[[#This Row],[Versement total]],TODAY()-Tableau1[[#This Row],[Date]],Tableau1[[#This Row],[Date dernier Versement]]-Tableau1[[#This Row],[Date]]) -> 0 | N60: =Tableau1[[#This Row],[Versement total]]/Tableau1[[#This Row],[Montant]] -> 
G61: =4000*Tableau1[[#This Row],[Cartons Vendus]] -> 0 | H61: Erreur | I61: 0 | J61: 0 | L61: =Tableau1[[#This Row],[Montant]]-Tableau1[[#This Row],[Versement total]] -> 0 | M61: =IF(Tableau1[[#This Row],[Montant]]>Tableau1[[#This Row],[Versement total]],TODAY()-Tableau1[[#This Row],[Date]],Tableau1[[#This Row],[Date dernier Versement]]-Tableau1[[#This Row],[Date]]) -> 0 | N61: =Tableau1[[#This Row],[Versement total]]/Tableau1[[#This Row],[Montant]] -> 
G62: =4000*Tableau1[[#This Row],[Cartons Vendus]] -> 0 | H62: Erreur | I62: 0 | J62: 0 | L62: =Tableau1[[#This Row],[Montant]]-Tableau1[[#This Row],[Versement total]] -> 0 | M62: =IF(Tableau1[[#This Row],[Montant]]>Tableau1[[#This Row],[Versement total]],TODAY()-Tableau1[[#This Row],[Date]],Tableau1[[#This Row],[Date dernier Versement]]-Tableau1[[#This Row],[Date]]) -> 0 | N62: =Tableau1[[#This Row],[Versement total]]/Tableau1[[#This Row],[Montant]] -> 
G63: =4000*Tableau1[[#This Row],[Cartons Vendus]] -> 0 | H63: Erreur | I63: 0 | J63: 0 | L63: =Tableau1[[#This Row],[Montant]]-Tableau1[[#This Row],[Versement total]] -> 0 | M63: =IF(Tableau1[[#This Row],[Montant]]>Tableau1[[#This Row],[Versement total]],TODAY()-Tableau1[[#This Row],[Date]],Tableau1[[#This Row],[Date dernier Versement]]-Tableau1[[#This Row],[Date]]) -> 0 | N63: =Tableau1[[#This Row],[Versement total]]/Tableau1[[#This Row],[Montant]] -> 
G64: =4000*Tableau1[[#This Row],[Cartons Vendus]] -> 0 | H64: Erreur | I64: 0 | J64: 0 | L64: =Tableau1[[#This Row],[Montant]]-Tableau1[[#This Row],[Versement total]] -> 0 | M64: =IF(Tableau1[[#This Row],[Montant]]>Tableau1[[#This Row],[Versement total]],TODAY()-Tableau1[[#This Row],[Date]],Tableau1[[#This Row],[Date dernier Versement]]-Tableau1[[#This Row],[Date]]) -> 0 | N64: =Tableau1[[#This Row],[Versement total]]/Tableau1[[#This Row],[Montant]] -> 
G65: =4000*Tableau1[[#This Row],[Cartons Vendus]] -> 0 | H65: Erreur | I65: 0 | J65: 0 | L65: =Tableau1[[#This Row],[Montant]]-Tableau1[[#This Row],[Versement total]] -> 0 | M65: =IF(Tableau1[[#This Row],[Montant]]>Tableau1[[#This Row],[Versement total]],TODAY()-Tableau1[[#This Row],[Date]],Tableau1[[#This Row],[Date dernier Versement]]-Tableau1[[#This Row],[Date]]) -> 0 | N65: =Tableau1[[#This Row],[Versement total]]/Tableau1[[#This Row],[Montant]] -> 
G66: =4000*Tableau1[[#This Row],[Cartons Vendus]] -> 0 | H66: Erreur | I66: 0 | J66: 0 | L66: =Tableau1[[#This Row],[Montant]]-Tableau1[[#This Row],[Versement total]] -> 0 | M66: =IF(Tableau1[[#This Row],[Montant]]>Tableau1[[#This Row],[Versement total]],TODAY()-Tableau1[[#This Row],[Date]],Tableau1[[#This Row],[Date dernier Versement]]-Tableau1[[#This Row],[Date]]) -> 0 | N66: =Tableau1[[#This Row],[Versement total]]/Tableau1[[#This Row],[Montant]] -> 
G67: =4000*Tableau1[[#This Row],[Cartons Vendus]] -> 0 | H67: Erreur | I67: 0 | J67: 0 | L67: =Tableau1[[#This Row],[Montant]]-Tableau1[[#This Row],[Versement total]] -> 0 | M67: =IF(Tableau1[[#This Row],[Montant]]>Tableau1[[#This Row],[Versement total]],TODAY()-Tableau1[[#This Row],[Date]],Tableau1[[#This Row],[Date dernier Versement]]-Tableau1[[#This Row],[Date]]) -> 0 | N67: =Tableau1[[#This Row],[Versement total]]/Tableau1[[#This Row],[Montant]] -> 
C68: =A:A&B:B ->  | G68: =4000*Tableau1[[#This Row],[Cartons Vendus]] -> 0 | H68: Erreur | I68: 0 | J68: 0 | L68: =Tableau1[[#This Row],[Montant]]-Tableau1[[#This Row],[Versement total]] -> 0 | M68: =IF(Tableau1[[#This Row],[Montant]]>Tableau1[[#This Row],[Versement total]],TODAY()-Tableau1[[#This Row],[Date]],Tableau1[[#This Row],[Date dernier Versement]]-Tableau1[[#This Row],[Date]]) -> 0 | N68: =Tableau1[[#This Row],[Versement total]]/Tableau1[[#This Row],[Montant]] -> 
G69: =4000*Tableau1[[#This Row],[Cartons Vendus]] -> 0 | H69: Erreur | I69: 0 | J69: 0 | L69: =Tableau1[[#This Row],[Montant]]-Tableau1[[#This Row],[Versement total]] -> 0 | M69: =IF(Tableau1[[#This Row],[Montant]]>Tableau1[[#This Row],[Versement total]],TODAY()-Tableau1[[#This Row],[Date]],Tableau1[[#This Row],[Date dernier Versement]]-Tableau1[[#This Row],[Date]]) -> 0 | N69: =Tableau1[[#This Row],[Versement total]]/Tableau1[[#This Row],[Montant]] -> 
G70: =4000*Tableau1[[#This Row],[Cartons Vendus]] -> 0 | H70: =IF(AND(ISBLANK(A70),E70<>0,G70<40000),"échantillon", IF(AND(G70>0,G70=I70,G70=J70,A70<>0,F70=K70),"Payé en Espèce", IF(AND(I70<G70,A70<>0,I70>=J70,TODAY()-F70<45),"Nouvelle Créance", IF(AND(I70<G70,A70<>0,I70>=J70,TODAY()-F70>=45),"Ancienne Créance", IF(AND(G70=I70,A70<>0,I70>=J70,J70>0,K70-F70>0),"Rembourssement Terminé", "Erreur"))))) -> Erreur | I70: 0 | J70: 0 | L70: =Tableau1[[#This Row],[Montant]]-Tableau1[[#This Row],[Versement total]] -> 0 | M70: =IF(Tableau1[[#This Row],[Montant]]>Tableau1[[#This Row],[Versement total]],TODAY()-Tableau1[[#This Row],[Date]],Tableau1[[#This Row],[Date dernier Versement]]-Tableau1[[#This Row],[Date]]) -> 0 | N70: =Tableau1[[#This Row],[Versement total]]/Tableau1[[#This Row],[Montant]] -> 
G71: =4000*Tableau1[[#This Row],[Cartons Vendus]] -> 0 | H71: Erreur | I71: 0 | J71: 0 | L71: =Tableau1[[#This Row],[Montant]]-Tableau1[[#This Row],[Versement total]] -> 0 | M71: =IF(Tableau1[[#This Row],[Montant]]>Tableau1[[#This Row],[Versement total]],TODAY()-Tableau1[[#This Row],[Date]],Tableau1[[#This Row],[Date dernier Versement]]-Tableau1[[#This Row],[Date]]) -> 0 | N71: =Tableau1[[#This Row],[Versement total]]/Tableau1[[#This Row],[Montant]] -> 
G72: =4000*Tableau1[[#This Row],[Cartons Vendus]] -> 0 | H72: Erreur | I72: 0 | J72: 0 | L72: =Tableau1[[#This Row],[Montant]]-Tableau1[[#This Row],[Versement total]] -> 0 | M72: =IF(Tableau1[[#This Row],[Montant]]>Tableau1[[#This Row],[Versement total]],TODAY()-Tableau1[[#This Row],[Date]],Tableau1[[#This Row],[Date dernier Versement]]-Tableau1[[#This Row],[Date]]) -> 0 | N72: =Tableau1[[#This Row],[Versement total]]/Tableau1[[#This Row],[Montant]] -> 
G73: =4000*Tableau1[[#This Row],[Cartons Vendus]] -> 0 | H73: Erreur | I73: 0 | J73: 0 | L73: =Tableau1[[#This Row],[Montant]]-Tableau1[[#This Row],[Versement total]] -> 0 | M73: =IF(Tableau1[[#This Row],[Montant]]>Tableau1[[#This Row],[Versement total]],TODAY()-Tableau1[[#This Row],[Date]],Tableau1[[#This Row],[Date dernier Versement]]-Tableau1[[#This Row],[Date]]) -> 0 | N73: =Tableau1[[#This Row],[Versement total]]/Tableau1[[#This Row],[Montant]] -> 
G74: =4000*Tableau1[[#This Row],[Cartons Vendus]] -> 0 | H74: Erreur | I74: 0 | J74: 0 | L74: =Tableau1[[#This Row],[Montant]]-Tableau1[[#This Row],[Versement total]] -> 0 | M74: =IF(Tableau1[[#This Row],[Montant]]>Tableau1[[#This Row],[Versement total]],TODAY()-Tableau1[[#This Row],[Date]],Tableau1[[#This Row],[Date dernier Versement]]-Tableau1[[#This Row],[Date]]) -> 0 | N74: =Tableau1[[#This Row],[Versement total]]/Tableau1[[#This Row],[Montant]] -> 
G75: =4000*Tableau1[[#This Row],[Cartons Vendus]] -> 0 | H75: Erreur | I75: 0 | J75: 0 | L75: =Tableau1[[#This Row],[Montant]]-Tableau1[[#This Row],[Versement total]] -> 0 | M75: =IF(Tableau1[[#This Row],[Montant]]>Tableau1[[#This Row],[Versement total]],TODAY()-Tableau1[[#This Row],[Date]],Tableau1[[#This Row],[Date dernier Versement]]-Tableau1[[#This Row],[Date]]) -> 0 | N75: =Tableau1[[#This Row],[Versement total]]/Tableau1[[#This Row],[Montant]] -> 
G76: =4000*Tableau1[[#This Row],[Cartons Vendus]] -> 0 | H76: Erreur | I76: 0 | J76: 0 | L76: =Tableau1[[#This Row],[Montant]]-Tableau1[[#This Row],[Versement total]] -> 0 | M76: =IF(Tableau1[[#This Row],[Montant]]>Tableau1[[#This Row],[Versement total]],TODAY()-Tableau1[[#This Row],[Date]],Tableau1[[#This Row],[Date dernier Versement]]-Tableau1[[#This Row],[Date]]) -> 0 | N76: =Tableau1[[#This Row],[Versement total]]/Tableau1[[#This Row],[Montant]] -> 
G77: =4000*Tableau1[[#This Row],[Cartons Vendus]] -> 0 | H77: Erreur | I77: 0 | J77: 0 | L77: =Tableau1[[#This Row],[Montant]]-Tableau1[[#This Row],[Versement total]] -> 0 | M77: =IF(Tableau1[[#This Row],[Montant]]>Tableau1[[#This Row],[Versement total]],TODAY()-Tableau1[[#This Row],[Date]],Tableau1[[#This Row],[Date dernier Versement]]-Tableau1[[#This Row],[Date]]) -> 0 | N77: =Tableau1[[#This Row],[Versement total]]/Tableau1[[#This Row],[Montant]] -> 
G78: =4000*Tableau1[[#This Row],[Cartons Vendus]] -> 0 | H78: Erreur | I78: 0 | J78: 0 | L78: =Tableau1[[#This Row],[Montant]]-Tableau1[[#This Row],[Versement total]] -> 0 | M78: =IF(Tableau1[[#This Row],[Montant]]>Tableau1[[#This Row],[Versement total]],TODAY()-Tableau1[[#This Row],[Date]],Tableau1[[#This Row],[Date dernier Versement]]-Tableau1[[#This Row],[Date]]) -> 0 | N78: =Tableau1[[#This Row],[Versement total]]/Tableau1[[#This Row],[Montant]] -> 
G79: =4000*Tableau1[[#This Row],[Cartons Vendus]] -> 0 | H79: Erreur | I79: 0 | J79: 0 | L79: =Tableau1[[#This Row],[Montant]]-Tableau1[[#This Row],[Versement total]] -> 0 | M79: =IF(Tableau1[[#This Row],[Montant]]>Tableau1[[#This Row],[Versement total]],TODAY()-Tableau1[[#This Row],[Date]],Tableau1[[#This Row],[Date dernier Versement]]-Tableau1[[#This Row],[Date]]) -> 0 | N79: =Tableau1[[#This Row],[Versement total]]/Tableau1[[#This Row],[Montant]] -> 
G80: =4000*Tableau1[[#This Row],[Cartons Vendus]] -> 0 | H80: Erreur | I80: 0 | J80: 0 | L80: =Tableau1[[#This Row],[Montant]]-Tableau1[[#This Row],[Versement total]] -> 0 | M80: =IF(Tableau1[[#This Row],[Montant]]>Tableau1[[#This Row],[Versement total]],TODAY()-Tableau1[[#This Row],[Date]],Tableau1[[#This Row],[Date dernier Versement]]-Tableau1[[#This Row],[Date]]) -> 0 | N80: =Tableau1[[#This Row],[Versement total]]/Tableau1[[#This Row],[Montant]] -> 
G81: =4000*Tableau1[[#This Row],[Cartons Vendus]] -> 0 | H81: Erreur | I81: 0 | J81: 0 | L81: =Tableau1[[#This Row],[Montant]]-Tableau1[[#This Row],[Versement total]] -> 0 | M81: =IF(Tableau1[[#This Row],[Montant]]>Tableau1[[#This Row],[Versement total]],TODAY()-Tableau1[[#This Row],[Date]],Tableau1[[#This Row],[Date dernier Versement]]-Tableau1[[#This Row],[Date]]) -> 0 | N81: =Tableau1[[#This Row],[Versement total]]/Tableau1[[#This Row],[Montant]] -> 
G82: =4000*Tableau1[[#This Row],[Cartons Vendus]] -> 0 | H82: Erreur | I82: 0 | J82: 0 | L82: =Tableau1[[#This Row],[Montant]]-Tableau1[[#This Row],[Versement total]] -> 0 | M82: =IF(Tableau1[[#This Row],[Montant]]>Tableau1[[#This Row],[Versement total]],TODAY()-Tableau1[[#This Row],[Date]],Tableau1[[#This Row],[Date dernier Versement]]-Tableau1[[#This Row],[Date]]) -> 0 | N82: =Tableau1[[#This Row],[Versement total]]/Tableau1[[#This Row],[Montant]] -> 
G83: =4000*Tableau1[[#This Row],[Cartons Vendus]] -> 0 | H83: Erreur | I83: 0 | J83: 0 | L83: =Tableau1[[#This Row],[Montant]]-Tableau1[[#This Row],[Versement total]] -> 0 | M83: =IF(Tableau1[[#This Row],[Montant]]>Tableau1[[#This Row],[Versement total]],TODAY()-Tableau1[[#This Row],[Date]],Tableau1[[#This Row],[Date dernier Versement]]-Tableau1[[#This Row],[Date]]) -> 0 | N83: =Tableau1[[#This Row],[Versement total]]/Tableau1[[#This Row],[Montant]] -> 
G84: =4000*Tableau1[[#This Row],[Cartons Vendus]] -> 0 | H84: Erreur | I84: 0 | J84: 0 | L84: =Tableau1[[#This Row],[Montant]]-Tableau1[[#This Row],[Versement total]] -> 0 | M84: =IF(Tableau1[[#This Row],[Montant]]>Tableau1[[#This Row],[Versement total]],TODAY()-Tableau1[[#This Row],[Date]],Tableau1[[#This Row],[Date dernier Versement]]-Tableau1[[#This Row],[Date]]) -> 0 | N84: =Tableau1[[#This Row],[Versement total]]/Tableau1[[#This Row],[Montant]] -> 
G85: =4000*Tableau1[[#This Row],[Cartons Vendus]] -> 0 | H85: Erreur | I85: 0 | J85: 0 | L85: =Tableau1[[#This Row],[Montant]]-Tableau1[[#This Row],[Versement total]] -> 0 | M85: =IF(Tableau1[[#This Row],[Montant]]>Tableau1[[#This Row],[Versement total]],TODAY()-Tableau1[[#This Row],[Date]],Tableau1[[#This Row],[Date dernier Versement]]-Tableau1[[#This Row],[Date]]) -> 0 | N85: =Tableau1[[#This Row],[Versement total]]/Tableau1[[#This Row],[Montant]] -> 
G86: =4000*Tableau1[[#This Row],[Cartons Vendus]] -> 0 | H86: Erreur | I86: 0 | J86: 0 | L86: =Tableau1[[#This Row],[Montant]]-Tableau1[[#This Row],[Versement total]] -> 0 | M86: =IF(Tableau1[[#This Row],[Montant]]>Tableau1[[#This Row],[Versement total]],TODAY()-Tableau1[[#This Row],[Date]],Tableau1[[#This Row],[Date dernier Versement]]-Tableau1[[#This Row],[Date]]) -> 0 | N86: =Tableau1[[#This Row],[Versement total]]/Tableau1[[#This Row],[Montant]] -> 
G87: =4000*Tableau1[[#This Row],[Cartons Vendus]] -> 0 | H87: Erreur | I87: 0 | J87: 0 | L87: =Tableau1[[#This Row],[Montant]]-Tableau1[[#This Row],[Versement total]] -> 0 | M87: =IF(Tableau1[[#This Row],[Montant]]>Tableau1[[#This Row],[Versement total]],TODAY()-Tableau1[[#This Row],[Date]],Tableau1[[#This Row],[Date dernier Versement]]-Tableau1[[#This Row],[Date]]) -> 0 | N87: =Tableau1[[#This Row],[Versement total]]/Tableau1[[#This Row],[Montant]] -> 
G88: =4000*Tableau1[[#This Row],[Cartons Vendus]] -> 0 | H88: Erreur | I88: 0 | J88: 0 | L88: =Tableau1[[#This Row],[Montant]]-Tableau1[[#This Row],[Versement total]] -> 0 | M88: =IF(Tableau1[[#This Row],[Montant]]>Tableau1[[#This Row],[Versement total]],TODAY()-Tableau1[[#This Row],[Date]],Tableau1[[#This Row],[Date dernier Versement]]-Tableau1[[#This Row],[Date]]) -> 0 | N88: =Tableau1[[#This Row],[Versement total]]/Tableau1[[#This Row],[Montant]] -> 
G89: =4000*Tableau1[[#This Row],[Cartons Vendus]] -> 0 | H89: Erreur | I89: 0 | J89: 0 | L89: =Tableau1[[#This Row],[Montant]]-Tableau1[[#This Row],[Versement total]] -> 0 | M89: =IF(Tableau1[[#This Row],[Montant]]>Tableau1[[#This Row],[Versement total]],TODAY()-Tableau1[[#This Row],[Date]],Tableau1[[#This Row],[Date dernier Versement]]-Tableau1[[#This Row],[Date]]) -> 0 | N89: =Tableau1[[#This Row],[Versement total]]/Tableau1[[#This Row],[Montant]] -> 
G90: =4000*Tableau1[[#This Row],[Cartons Vendus]] -> 0 | H90: Erreur | I90: 0 | J90: 0 | L90: =Tableau1[[#This Row],[Montant]]-Tableau1[[#This Row],[Versement total]] -> 0 | M90: =IF(Tableau1[[#This Row],[Montant]]>Tableau1[[#This Row],[Versement total]],TODAY()-Tableau1[[#This Row],[Date]],Tableau1[[#This Row],[Date dernier Versement]]-Tableau1[[#This Row],[Date]]) -> 0 | N90: =Tableau1[[#This Row],[Versement total]]/Tableau1[[#This Row],[Montant]] -> 
G91: =4000*Tableau1[[#This Row],[Cartons Vendus]] -> 0 | H91: Erreur | I91: 0 | J91: 0 | L91: =Tableau1[[#This Row],[Montant]]-Tableau1[[#This Row],[Versement total]] -> 0 | M91: =IF(Tableau1[[#This Row],[Montant]]>Tableau1[[#This Row],[Versement total]],TODAY()-Tableau1[[#This Row],[Date]],Tableau1[[#This Row],[Date dernier Versement]]-Tableau1[[#This Row],[Date]]) -> 0 | N91: =Tableau1[[#This Row],[Versement total]]/Tableau1[[#This Row],[Montant]] -> 
G92: =4000*Tableau1[[#This Row],[Cartons Vendus]] -> 0 | H92: Erreur | I92: 0 | J92: 0 | L92: =Tableau1[[#This Row],[Montant]]-Tableau1[[#This Row],[Versement total]] -> 0 | M92: =IF(Tableau1[[#This Row],[Montant]]>Tableau1[[#This Row],[Versement total]],TODAY()-Tableau1[[#This Row],[Date]],Tableau1[[#This Row],[Date dernier Versement]]-Tableau1[[#This Row],[Date]]) -> 0 | N92: =Tableau1[[#This Row],[Versement total]]/Tableau1[[#This Row],[Montant]] -> 
G93: =4000*Tableau1[[#This Row],[Cartons Vendus]] -> 0 | H93: Erreur | I93: 0 | J93: 0 | L93: =Tableau1[[#This Row],[Montant]]-Tableau1[[#This Row],[Versement total]] -> 0 | M93: =IF(Tableau1[[#This Row],[Montant]]>Tableau1[[#This Row],[Versement total]],TODAY()-Tableau1[[#This Row],[Date]],Tableau1[[#This Row],[Date dernier Versement]]-Tableau1[[#This Row],[Date]]) -> 0 | N93: =Tableau1[[#This Row],[Versement total]]/Tableau1[[#This Row],[Montant]] -> 
G94: =4000*Tableau1[[#This Row],[Cartons Vendus]] -> 0 | H94: Erreur | I94: 0 | J94: 0 | L94: =Tableau1[[#This Row],[Montant]]-Tableau1[[#This Row],[Versement total]] -> 0 | M94: =IF(Tableau1[[#This Row],[Montant]]>Tableau1[[#This Row],[Versement total]],TODAY()-Tableau1[[#This Row],[Date]],Tableau1[[#This Row],[Date dernier Versement]]-Tableau1[[#This Row],[Date]]) -> 0 | N94: =Tableau1[[#This Row],[Versement total]]/Tableau1[[#This Row],[Montant]] -> 
G95: =4000*Tableau1[[#This Row],[Cartons Vendus]] -> 0 | H95: Erreur | I95: 0 | J95: 0 | L95: =Tableau1[[#This Row],[Montant]]-Tableau1[[#This Row],[Versement total]] -> 0 | M95: =IF(Tableau1[[#This Row],[Montant]]>Tableau1[[#This Row],[Versement total]],TODAY()-Tableau1[[#This Row],[Date]],Tableau1[[#This Row],[Date dernier Versement]]-Tableau1[[#This Row],[Date]]) -> 0 | N95: =Tableau1[[#This Row],[Versement total]]/Tableau1[[#This Row],[Montant]] -> 
G96: =4000*Tableau1[[#This Row],[Cartons Vendus]] -> 0 | H96: Erreur | I96: 0 | J96: 0 | L96: =Tableau1[[#This Row],[Montant]]-Tableau1[[#This Row],[Versement total]] -> 0 | M96: =IF(Tableau1[[#This Row],[Montant]]>Tableau1[[#This Row],[Versement total]],TODAY()-Tableau1[[#This Row],[Date]],Tableau1[[#This Row],[Date dernier Versement]]-Tableau1[[#This Row],[Date]]) -> 0 | N96: =Tableau1[[#This Row],[Versement total]]/Tableau1[[#This Row],[Montant]] -> 
G97: =4000*Tableau1[[#This Row],[Cartons Vendus]] -> 0 | H97: Erreur | I97: 0 | J97: 0 | L97: =Tableau1[[#This Row],[Montant]]-Tableau1[[#This Row],[Versement total]] -> 0 | M97: =IF(Tableau1[[#This Row],[Montant]]>Tableau1[[#This Row],[Versement total]],TODAY()-Tableau1[[#This Row],[Date]],Tableau1[[#This Row],[Date dernier Versement]]-Tableau1[[#This Row],[Date]]) -> 0 | N97: =Tableau1[[#This Row],[Versement total]]/Tableau1[[#This Row],[Montant]] -> 
G98: =4000*Tableau1[[#This Row],[Cartons Vendus]] -> 0 | H98: Erreur | I98: 0 | J98: 0 | L98: =Tableau1[[#This Row],[Montant]]-Tableau1[[#This Row],[Versement total]] -> 0 | M98: =IF(Tableau1[[#This Row],[Montant]]>Tableau1[[#This Row],[Versement total]],TODAY()-Tableau1[[#This Row],[Date]],Tableau1[[#This Row],[Date dernier Versement]]-Tableau1[[#This Row],[Date]]) -> 0 | N98: =Tableau1[[#This Row],[Versement total]]/Tableau1[[#This Row],[Montant]] -> 
G99: =4000*Tableau1[[#This Row],[Cartons Vendus]] -> 0 | H99: Erreur | I99: 0 | J99: 0 | L99: =Tableau1[[#This Row],[Montant]]-Tableau1[[#This Row],[Versement total]] -> 0 | M99: =IF(Tableau1[[#This Row],[Montant]]>Tableau1[[#This Row],[Versement total]],TODAY()-Tableau1[[#This Row],[Date]],Tableau1[[#This Row],[Date dernier Versement]]-Tableau1[[#This Row],[Date]]) -> 0 | N99: =Tableau1[[#This Row],[Versement total]]/Tableau1[[#This Row],[Montant]] -> 
G100: =4000*Tableau1[[#This Row],[Cartons Vendus]] -> 0 | H100: Erreur | I100: 0 | J100: 0 | L100: =Tableau1[[#This Row],[Montant]]-Tableau1[[#This Row],[Versement total]] -> 0 | M100: =IF(Tableau1[[#This Row],[Montant]]>Tableau1[[#This Row],[Versement total]],TODAY()-Tableau1[[#This Row],[Date]],Tableau1[[#This Row],[Date dernier Versement]]-Tableau1[[#This Row],[Date]]) -> 0 | N100: =Tableau1[[#This Row],[Versement total]]/Tableau1[[#This Row],[Montant]] -> 
G101: =4000*Tableau1[[#This Row],[Cartons Vendus]] -> 0 | H101: Erreur | I101: 0 | J101: 0 | L101: =Tableau1[[#This Row],[Montant]]-Tableau1[[#This Row],[Versement total]] -> 0 | M101: =IF(Tableau1[[#This Row],[Montant]]>Tableau1[[#This Row],[Versement total]],TODAY()-Tableau1[[#This Row],[Date]],Tableau1[[#This Row],[Date dernier Versement]]-Tableau1[[#This Row],[Date]]) -> 0 | N101: =Tableau1[[#This Row],[Versement total]]/Tableau1[[#This Row],[Montant]] -> 
G102: =4000*Tableau1[[#This Row],[Cartons Vendus]] -> 0 | H102: Erreur | I102: 0 | J102: 0 | L102: =Tableau1[[#This Row],[Montant]]-Tableau1[[#This Row],[Versement total]] -> 0 | M102: =IF(Tableau1[[#This Row],[Montant]]>Tableau1[[#This Row],[Versement total]],TODAY()-Tableau1[[#This Row],[Date]],Tableau1[[#This Row],[Date dernier Versement]]-Tableau1[[#This Row],[Date]]) -> 0 | N102: =Tableau1[[#This Row],[Versement total]]/Tableau1[[#This Row],[Montant]] -> 
G103: =4000*Tableau1[[#This Row],[Cartons Vendus]] -> 0 | H103: Erreur | I103: 0 | J103: 0 | L103: =Tableau1[[#This Row],[Montant]]-Tableau1[[#This Row],[Versement total]] -> 0 | M103: =IF(Tableau1[[#This Row],[Montant]]>Tableau1[[#This Row],[Versement total]],TODAY()-Tableau1[[#This Row],[Date]],Tableau1[[#This Row],[Date dernier Versement]]-Tableau1[[#This Row],[Date]]) -> 0 | N103: =Tableau1[[#This Row],[Versement total]]/Tableau1[[#This Row],[Montant]] -> 
G104: =4000*Tableau1[[#This Row],[Cartons Vendus]] -> 0 | H104: Erreur | I104: 0 | J104: 0 | L104: =Tableau1[[#This Row],[Montant]]-Tableau1[[#This Row],[Versement total]] -> 0 | M104: =IF(Tableau1[[#This Row],[Montant]]>Tableau1[[#This Row],[Versement total]],TODAY()-Tableau1[[#This Row],[Date]],Tableau1[[#This Row],[Date dernier Versement]]-Tableau1[[#This Row],[Date]]) -> 0 | N104: =Tableau1[[#This Row],[Versement total]]/Tableau1[[#This Row],[Montant]] -> 
G105: =4000*Tableau1[[#This Row],[Cartons Vendus]] -> 0 | H105: Erreur | I105: 0 | J105: 0 | L105: =Tableau1[[#This Row],[Montant]]-Tableau1[[#This Row],[Versement total]] -> 0 | M105: =IF(Tableau1[[#This Row],[Montant]]>Tableau1[[#This Row],[Versement total]],TODAY()-Tableau1[[#This Row],[Date]],Tableau1[[#This Row],[Date dernier Versement]]-Tableau1[[#This Row],[Date]]) -> 0 | N105: =Tableau1[[#This Row],[Versement total]]/Tableau1[[#This Row],[Montant]] -> 
G106: =4000*Tableau1[[#This Row],[Cartons Vendus]] -> 0 | H106: Erreur | I106: 0 | J106: 0 | L106: =Tableau1[[#This Row],[Montant]]-Tableau1[[#This Row],[Versement total]] -> 0 | M106: =IF(Tableau1[[#This Row],[Montant]]>Tableau1[[#This Row],[Versement total]],TODAY()-Tableau1[[#This Row],[Date]],Tableau1[[#This Row],[Date dernier Versement]]-Tableau1[[#This Row],[Date]]) -> 0 | N106: =Tableau1[[#This Row],[Versement total]]/Tableau1[[#This Row],[Montant]] -> 
G107: =4000*Tableau1[[#This Row],[Cartons Vendus]] -> 0 | H107: Erreur | I107: 0 | J107: 0 | L107: =Tableau1[[#This Row],[Montant]]-Tableau1[[#This Row],[Versement total]] -> 0 | M107: =IF(Tableau1[[#This Row],[Montant]]>Tableau1[[#This Row],[Versement total]],TODAY()-Tableau1[[#This Row],[Date]],Tableau1[[#This Row],[Date dernier Versement]]-Tableau1[[#This Row],[Date]]) -> 0 | N107: =Tableau1[[#This Row],[Versement total]]/Tableau1[[#This Row],[Montant]] -> 
G108: =4000*Tableau1[[#This Row],[Cartons Vendus]] -> 0 | H108: Erreur | I108: 0 | J108: 0 | L108: =Tableau1[[#This Row],[Montant]]-Tableau1[[#This Row],[Versement total]] -> 0 | M108: =IF(Tableau1[[#This Row],[Montant]]>Tableau1[[#This Row],[Versement total]],TODAY()-Tableau1[[#This Row],[Date]],Tableau1[[#This Row],[Date dernier Versement]]-Tableau1[[#This Row],[Date]]) -> 0 | N108: =Tableau1[[#This Row],[Versement total]]/Tableau1[[#This Row],[Montant]] -> 
G109: =4000*Tableau1[[#This Row],[Cartons Vendus]] -> 0 | H109: Erreur | I109: 0 | J109: 0 | L109: =Tableau1[[#This Row],[Montant]]-Tableau1[[#This Row],[Versement total]] -> 0 | M109: =IF(Tableau1[[#This Row],[Montant]]>Tableau1[[#This Row],[Versement total]],TODAY()-Tableau1[[#This Row],[Date]],Tableau1[[#This Row],[Date dernier Versement]]-Tableau1[[#This Row],[Date]]) -> 0 | N109: =Tableau1[[#This Row],[Versement total]]/Tableau1[[#This Row],[Montant]] -> 
G110: =4000*Tableau1[[#This Row],[Cartons Vendus]] -> 0 | H110: Erreur | I110: 0 | J110: 0 | L110: =Tableau1[[#This Row],[Montant]]-Tableau1[[#This Row],[Versement total]] -> 0 | M110: =IF(Tableau1[[#This Row],[Montant]]>Tableau1[[#This Row],[Versement total]],TODAY()-Tableau1[[#This Row],[Date]],Tableau1[[#This Row],[Date dernier Versement]]-Tableau1[[#This Row],[Date]]) -> 0 | N110: =Tableau1[[#This Row],[Versement total]]/Tableau1[[#This Row],[Montant]] -> 
G111: =4000*Tableau1[[#This Row],[Cartons Vendus]] -> 0 | H111: Erreur | I111: 0 | J111: 0 | L111: =Tableau1[[#This Row],[Montant]]-Tableau1[[#This Row],[Versement total]] -> 0 | M111: =IF(Tableau1[[#This Row],[Montant]]>Tableau1[[#This Row],[Versement total]],TODAY()-Tableau1[[#This Row],[Date]],Tableau1[[#This Row],[Date dernier Versement]]-Tableau1[[#This Row],[Date]]) -> 0 | N111: =Tableau1[[#This Row],[Versement total]]/Tableau1[[#This Row],[Montant]] -> 
G112: =4000*Tableau1[[#This Row],[Cartons Vendus]] -> 0 | H112: Erreur | I112: 0 | J112: 0 | L112: =Tableau1[[#This Row],[Montant]]-Tableau1[[#This Row],[Versement total]] -> 0 | M112: =IF(Tableau1[[#This Row],[Montant]]>Tableau1[[#This Row],[Versement total]],TODAY()-Tableau1[[#This Row],[Date]],Tableau1[[#This Row],[Date dernier Versement]]-Tableau1[[#This Row],[Date]]) -> 0 | N112: =Tableau1[[#This Row],[Versement total]]/Tableau1[[#This Row],[Montant]] -> 
G113: =4000*Tableau1[[#This Row],[Cartons Vendus]] -> 0 | H113: Erreur | I113: 0 | J113: 0 | L113: =Tableau1[[#This Row],[Montant]]-Tableau1[[#This Row],[Versement total]] -> 0 | M113: =IF(Tableau1[[#This Row],[Montant]]>Tableau1[[#This Row],[Versement total]],TODAY()-Tableau1[[#This Row],[Date]],Tableau1[[#This Row],[Date dernier Versement]]-Tableau1[[#This Row],[Date]]) -> 0 | N113: =Tableau1[[#This Row],[Versement total]]/Tableau1[[#This Row],[Montant]] -> 
G114: =4000*Tableau1[[#This Row],[Cartons Vendus]] -> 0 | H114: Erreur | I114: 0 | J114: 0 | L114: =Tableau1[[#This Row],[Montant]]-Tableau1[[#This Row],[Versement total]] -> 0 | M114: =IF(Tableau1[[#This Row],[Montant]]>Tableau1[[#This Row],[Versement total]],TODAY()-Tableau1[[#This Row],[Date]],Tableau1[[#This Row],[Date dernier Versement]]-Tableau1[[#This Row],[Date]]) -> 0 | N114: =Tableau1[[#This Row],[Versement total]]/Tableau1[[#This Row],[Montant]] -> 
G115: =4000*Tableau1[[#This Row],[Cartons Vendus]] -> 0 | H115: Erreur | I115: 0 | J115: 0 | L115: =Tableau1[[#This Row],[Montant]]-Tableau1[[#This Row],[Versement total]] -> 0 | M115: =IF(Tableau1[[#This Row],[Montant]]>Tableau1[[#This Row],[Versement total]],TODAY()-Tableau1[[#This Row],[Date]],Tableau1[[#This Row],[Date dernier Versement]]-Tableau1[[#This Row],[Date]]) -> 0 | N115: =Tableau1[[#This Row],[Versement total]]/Tableau1[[#This Row],[Montant]] -> 
G116: =4000*Tableau1[[#This Row],[Cartons Vendus]] -> 0 | H116: Erreur | I116: 0 | J116: 0 | L116: =Tableau1[[#This Row],[Montant]]-Tableau1[[#This Row],[Versement total]] -> 0 | M116: =IF(Tableau1[[#This Row],[Montant]]>Tableau1[[#This Row],[Versement total]],TODAY()-Tableau1[[#This Row],[Date]],Tableau1[[#This Row],[Date dernier Versement]]-Tableau1[[#This Row],[Date]]) -> 0 | N116: =Tableau1[[#This Row],[Versement total]]/Tableau1[[#This Row],[Montant]] -> 
G117: =4000*Tableau1[[#This Row],[Cartons Vendus]] -> 0 | H117: Erreur | I117: 0 | J117: 0 | L117: =Tableau1[[#This Row],[Montant]]-Tableau1[[#This Row],[Versement total]] -> 0 | M117: =IF(Tableau1[[#This Row],[Montant]]>Tableau1[[#This Row],[Versement total]],TODAY()-Tableau1[[#This Row],[Date]],Tableau1[[#This Row],[Date dernier Versement]]-Tableau1[[#This Row],[Date]]) -> 0 | N117: =Tableau1[[#This Row],[Versement total]]/Tableau1[[#This Row],[Montant]] -> 
G118: =4000*Tableau1[[#This Row],[Cartons Vendus]] -> 0 | H118: Erreur | I118: 0 | J118: 0 | L118: =Tableau1[[#This Row],[Montant]]-Tableau1[[#This Row],[Versement total]] -> 0 | M118: =IF(Tableau1[[#This Row],[Montant]]>Tableau1[[#This Row],[Versement total]],TODAY()-Tableau1[[#This Row],[Date]],Tableau1[[#This Row],[Date dernier Versement]]-Tableau1[[#This Row],[Date]]) -> 0 | N118: =Tableau1[[#This Row],[Versement total]]/Tableau1[[#This Row],[Montant]] -> 
G119: =4000*Tableau1[[#This Row],[Cartons Vendus]] -> 0 | H119: Erreur | I119: 0 | J119: 0 | L119: =Tableau1[[#This Row],[Montant]]-Tableau1[[#This Row],[Versement total]] -> 0 | M119: =IF(Tableau1[[#This Row],[Montant]]>Tableau1[[#This Row],[Versement total]],TODAY()-Tableau1[[#This Row],[Date]],Tableau1[[#This Row],[Date dernier Versement]]-Tableau1[[#This Row],[Date]]) -> 0 | N119: =Tableau1[[#This Row],[Versement total]]/Tableau1[[#This Row],[Montant]] -> 
G120: =4000*Tableau1[[#This Row],[Cartons Vendus]] -> 0 | H120: Erreur | I120: 0 | J120: 0 | L120: =Tableau1[[#This Row],[Montant]]-Tableau1[[#This Row],[Versement total]] -> 0 | M120: =IF(Tableau1[[#This Row],[Montant]]>Tableau1[[#This Row],[Versement total]],TODAY()-Tableau1[[#This Row],[Date]],Tableau1[[#This Row],[Date dernier Versement]]-Tableau1[[#This Row],[Date]]) -> 0 | N120: =Tableau1[[#This Row],[Versement total]]/Tableau1[[#This Row],[Montant]] -> 
G121: =4000*Tableau1[[#This Row],[Cartons Vendus]] -> 0 | H121: Erreur | I121: 0 | J121: 0 | L121: =Tableau1[[#This Row],[Montant]]-Tableau1[[#This Row],[Versement total]] -> 0 | M121: =IF(Tableau1[[#This Row],[Montant]]>Tableau1[[#This Row],[Versement total]],TODAY()-Tableau1[[#This Row],[Date]],Tableau1[[#This Row],[Date dernier Versement]]-Tableau1[[#This Row],[Date]]) -> 0 | N121: =Tableau1[[#This Row],[Versement total]]/Tableau1[[#This Row],[Montant]] -> 
G122: =4000*Tableau1[[#This Row],[Cartons Vendus]] -> 0 | H122: Erreur | I122: 0 | J122: 0 | L122: =Tableau1[[#This Row],[Montant]]-Tableau1[[#This Row],[Versement total]] -> 0 | M122: =IF(Tableau1[[#This Row],[Montant]]>Tableau1[[#This Row],[Versement total]],TODAY()-Tableau1[[#This Row],[Date]],Tableau1[[#This Row],[Date dernier Versement]]-Tableau1[[#This Row],[Date]]) -> 0 | N122: =Tableau1[[#This Row],[Versement total]]/Tableau1[[#This Row],[Montant]] -> 
G123: =4000*Tableau1[[#This Row],[Cartons Vendus]] -> 0 | H123: Erreur | I123: 0 | J123: 0 | L123: =Tableau1[[#This Row],[Montant]]-Tableau1[[#This Row],[Versement total]] -> 0 | M123: =IF(Tableau1[[#This Row],[Montant]]>Tableau1[[#This Row],[Versement total]],TODAY()-Tableau1[[#This Row],[Date]],Tableau1[[#This Row],[Date dernier Versement]]-Tableau1[[#This Row],[Date]]) -> 0 | N123: =Tableau1[[#This Row],[Versement total]]/Tableau1[[#This Row],[Montant]] -> 
G124: =4000*Tableau1[[#This Row],[Cartons Vendus]] -> 0 | H124: Erreur | I124: 0 | J124: 0 | L124: =Tableau1[[#This Row],[Montant]]-Tableau1[[#This Row],[Versement total]] -> 0 | M124: =IF(Tableau1[[#This Row],[Montant]]>Tableau1[[#This Row],[Versement total]],TODAY()-Tableau1[[#This Row],[Date]],Tableau1[[#This Row],[Date dernier Versement]]-Tableau1[[#This Row],[Date]]) -> 0 | N124: =Tableau1[[#This Row],[Versement total]]/Tableau1[[#This Row],[Montant]] -> 
G125: =4000*Tableau1[[#This Row],[Cartons Vendus]] -> 0 | H125: Erreur | I125: 0 | J125: 0 | L125: =Tableau1[[#This Row],[Montant]]-Tableau1[[#This Row],[Versement total]] -> 0 | M125: =IF(Tableau1[[#This Row],[Montant]]>Tableau1[[#This Row],[Versement total]],TODAY()-Tableau1[[#This Row],[Date]],Tableau1[[#This Row],[Date dernier Versement]]-Tableau1[[#This Row],[Date]]) -> 0 | N125: =Tableau1[[#This Row],[Versement total]]/Tableau1[[#This Row],[Montant]] -> 
G126: =4000*Tableau1[[#This Row],[Cartons Vendus]] -> 0 | H126: Erreur | I126: 0 | J126: 0 | L126: =Tableau1[[#This Row],[Montant]]-Tableau1[[#This Row],[Versement total]] -> 0 | M126: =IF(Tableau1[[#This Row],[Montant]]>Tableau1[[#This Row],[Versement total]],TODAY()-Tableau1[[#This Row],[Date]],Tableau1[[#This Row],[Date dernier Versement]]-Tableau1[[#This Row],[Date]]) -> 0 | N126: =Tableau1[[#This Row],[Versement total]]/Tableau1[[#This Row],[Montant]] -> 
G127: =4000*Tableau1[[#This Row],[Cartons Vendus]] -> 0 | H127: Erreur | I127: 0 | J127: 0 | L127: =Tableau1[[#This Row],[Montant]]-Tableau1[[#This Row],[Versement total]] -> 0 | M127: =IF(Tableau1[[#This Row],[Montant]]>Tableau1[[#This Row],[Versement total]],TODAY()-Tableau1[[#This Row],[Date]],Tableau1[[#This Row],[Date dernier Versement]]-Tableau1[[#This Row],[Date]]) -> 0 | N127: =Tableau1[[#This Row],[Versement total]]/Tableau1[[#This Row],[Montant]] -> 
G128: =4000*Tableau1[[#This Row],[Cartons Vendus]] -> 0 | H128: Erreur | I128: 0 | J128: 0 | L128: =Tableau1[[#This Row],[Montant]]-Tableau1[[#This Row],[Versement total]] -> 0 | M128: =IF(Tableau1[[#This Row],[Montant]]>Tableau1[[#This Row],[Versement total]],TODAY()-Tableau1[[#This Row],[Date]],Tableau1[[#This Row],[Date dernier Versement]]-Tableau1[[#This Row],[Date]]) -> 0 | N128: =Tableau1[[#This Row],[Versement total]]/Tableau1[[#This Row],[Montant]] -> 
G129: =4000*Tableau1[[#This Row],[Cartons Vendus]] -> 0 | H129: Erreur | I129: 0 | J129: 0 | L129: =Tableau1[[#This Row],[Montant]]-Tableau1[[#This Row],[Versement total]] -> 0 | M129: =IF(Tableau1[[#This Row],[Montant]]>Tableau1[[#This Row],[Versement total]],TODAY()-Tableau1[[#This Row],[Date]],Tableau1[[#This Row],[Date dernier Versement]]-Tableau1[[#This Row],[Date]]) -> 0 | N129: =Tableau1[[#This Row],[Versement total]]/Tableau1[[#This Row],[Montant]] -> 
G130: =4000*Tableau1[[#This Row],[Cartons Vendus]] -> 0 | H130: Erreur | I130: 0 | J130: 0 | L130: =Tableau1[[#This Row],[Montant]]-Tableau1[[#This Row],[Versement total]] -> 0 | M130: =IF(Tableau1[[#This Row],[Montant]]>Tableau1[[#This Row],[Versement total]],TODAY()-Tableau1[[#This Row],[Date]],Tableau1[[#This Row],[Date dernier Versement]]-Tableau1[[#This Row],[Date]]) -> 0 | N130: =Tableau1[[#This Row],[Versement total]]/Tableau1[[#This Row],[Montant]] -> 
G131: =4000*Tableau1[[#This Row],[Cartons Vendus]] -> 0 | H131: Erreur | I131: 0 | J131: 0 | L131: =Tableau1[[#This Row],[Montant]]-Tableau1[[#This Row],[Versement total]] -> 0 | M131: =IF(Tableau1[[#This Row],[Montant]]>Tableau1[[#This Row],[Versement total]],TODAY()-Tableau1[[#This Row],[Date]],Tableau1[[#This Row],[Date dernier Versement]]-Tableau1[[#This Row],[Date]]) -> 0 | N131: =Tableau1[[#This Row],[Versement total]]/Tableau1[[#This Row],[Montant]] -> 
C132: =A:A&B:B ->  | G132: =4000*Tableau1[[#This Row],[Cartons Vendus]] -> 0 | H132: Erreur | I132: 0 | J132: 0 | L132: =Tableau1[[#This Row],[Montant]]-Tableau1[[#This Row],[Versement total]] -> 0 | M132: =IF(Tableau1[[#This Row],[Montant]]>Tableau1[[#This Row],[Versement total]],TODAY()-Tableau1[[#This Row],[Date]],Tableau1[[#This Row],[Date dernier Versement]]-Tableau1[[#This Row],[Date]]) -> 0 | N132: =Tableau1[[#This Row],[Versement total]]/Tableau1[[#This Row],[Montant]] -> 
G133: =4000*Tableau1[[#This Row],[Cartons Vendus]] -> 0 | H133: Erreur | I133: 0 | J133: 0 | L133: =Tableau1[[#This Row],[Montant]]-Tableau1[[#This Row],[Versement total]] -> 0 | M133: =IF(Tableau1[[#This Row],[Montant]]>Tableau1[[#This Row],[Versement total]],TODAY()-Tableau1[[#This Row],[Date]],Tableau1[[#This Row],[Date dernier Versement]]-Tableau1[[#This Row],[Date]]) -> 0 | N133: =Tableau1[[#This Row],[Versement total]]/Tableau1[[#This Row],[Montant]] -> 
G134: =4000*Tableau1[[#This Row],[Cartons Vendus]] -> 0 | H134: =IF(AND(ISBLANK(A134),E134<>0,G134<40000),"échantillon", IF(AND(G134>0,G134=I134,G134=J134,A134<>0,F134=K134),"Payé en Espèce", IF(AND(I134<G134,A134<>0,I134>=J134,TODAY()-F134<45),"Nouvelle Créance", IF(AND(I134<G134,A134<>0,I134>=J134,TODAY()-F134>=45),"Ancienne Créance", IF(AND(G134=I134,A134<>0,I134>=J134,J134>0,K134-F134>0),"Rembourssement Terminé", "Erreur"))))) -> Erreur | I134: 0 | J134: 0 | L134: =Tableau1[[#This Row],[Montant]]-Tableau1[[#This Row],[Versement total]] -> 0 | M134: =IF(Tableau1[[#This Row],[Montant]]>Tableau1[[#This Row],[Versement total]],TODAY()-Tableau1[[#This Row],[Date]],Tableau1[[#This Row],[Date dernier Versement]]-Tableau1[[#This Row],[Date]]) -> 0 | N134: =Tableau1[[#This Row],[Versement total]]/Tableau1[[#This Row],[Montant]] -> 
G135: =4000*Tableau1[[#This Row],[Cartons Vendus]] -> 0 | H135: Erreur | I135: 0 | J135: 0 | L135: =Tableau1[[#This Row],[Montant]]-Tableau1[[#This Row],[Versement total]] -> 0 | M135: =IF(Tableau1[[#This Row],[Montant]]>Tableau1[[#This Row],[Versement total]],TODAY()-Tableau1[[#This Row],[Date]],Tableau1[[#This Row],[Date dernier Versement]]-Tableau1[[#This Row],[Date]]) -> 0 | N135: =Tableau1[[#This Row],[Versement total]]/Tableau1[[#This Row],[Montant]] -> 
G136: =4000*Tableau1[[#This Row],[Cartons Vendus]] -> 0 | H136: Erreur | I136: 0 | J136: 0 | L136: =Tableau1[[#This Row],[Montant]]-Tableau1[[#This Row],[Versement total]] -> 0 | M136: =IF(Tableau1[[#This Row],[Montant]]>Tableau1[[#This Row],[Versement total]],TODAY()-Tableau1[[#This Row],[Date]],Tableau1[[#This Row],[Date dernier Versement]]-Tableau1[[#This Row],[Date]]) -> 0 | N136: =Tableau1[[#This Row],[Versement total]]/Tableau1[[#This Row],[Montant]] -> 
G137: =4000*Tableau1[[#This Row],[Cartons Vendus]] -> 0 | H137: Erreur | I137: 0 | J137: 0 | L137: =Tableau1[[#This Row],[Montant]]-Tableau1[[#This Row],[Versement total]] -> 0 | M137: =IF(Tableau1[[#This Row],[Montant]]>Tableau1[[#This Row],[Versement total]],TODAY()-Tableau1[[#This Row],[Date]],Tableau1[[#This Row],[Date dernier Versement]]-Tableau1[[#This Row],[Date]]) -> 0 | N137: =Tableau1[[#This Row],[Versement total]]/Tableau1[[#This Row],[Montant]] -> 
G138: =4000*Tableau1[[#This Row],[Cartons Vendus]] -> 0 | H138: Erreur | I138: 0 | J138: 0 | L138: =Tableau1[[#This Row],[Montant]]-Tableau1[[#This Row],[Versement total]] -> 0 | M138: =IF(Tableau1[[#This Row],[Montant]]>Tableau1[[#This Row],[Versement total]],TODAY()-Tableau1[[#This Row],[Date]],Tableau1[[#This Row],[Date dernier Versement]]-Tableau1[[#This Row],[Date]]) -> 0 | N138: =Tableau1[[#This Row],[Versement total]]/Tableau1[[#This Row],[Montant]] -> 
G139: =4000*Tableau1[[#This Row],[Cartons Vendus]] -> 0 | H139: Erreur | I139: 0 | J139: 0 | L139: =Tableau1[[#This Row],[Montant]]-Tableau1[[#This Row],[Versement total]] -> 0 | M139: =IF(Tableau1[[#This Row],[Montant]]>Tableau1[[#This Row],[Versement total]],TODAY()-Tableau1[[#This Row],[Date]],Tableau1[[#This Row],[Date dernier Versement]]-Tableau1[[#This Row],[Date]]) -> 0 | N139: =Tableau1[[#This Row],[Versement total]]/Tableau1[[#This Row],[Montant]] -> 
G140: =4000*Tableau1[[#This Row],[Cartons Vendus]] -> 0 | H140: Erreur | I140: 0 | J140: 0 | L140: =Tableau1[[#This Row],[Montant]]-Tableau1[[#This Row],[Versement total]] -> 0 | M140: =IF(Tableau1[[#This Row],[Montant]]>Tableau1[[#This Row],[Versement total]],TODAY()-Tableau1[[#This Row],[Date]],Tableau1[[#This Row],[Date dernier Versement]]-Tableau1[[#This Row],[Date]]) -> 0 | N140: =Tableau1[[#This Row],[Versement total]]/Tableau1[[#This Row],[Montant]] -> 
G141: =4000*Tableau1[[#This Row],[Cartons Vendus]] -> 0 | H141: Erreur | I141: 0 | J141: 0 | L141: =Tableau1[[#This Row],[Montant]]-Tableau1[[#This Row],[Versement total]] -> 0 | M141: =IF(Tableau1[[#This Row],[Montant]]>Tableau1[[#This Row],[Versement total]],TODAY()-Tableau1[[#This Row],[Date]],Tableau1[[#This Row],[Date dernier Versement]]-Tableau1[[#This Row],[Date]]) -> 0 | N141: =Tableau1[[#This Row],[Versement total]]/Tableau1[[#This Row],[Montant]] -> 
G142: =4000*Tableau1[[#This Row],[Cartons Vendus]] -> 0 | H142: Erreur | I142: 0 | J142: 0 | L142: =Tableau1[[#This Row],[Montant]]-Tableau1[[#This Row],[Versement total]] -> 0 | M142: =IF(Tableau1[[#This Row],[Montant]]>Tableau1[[#This Row],[Versement total]],TODAY()-Tableau1[[#This Row],[Date]],Tableau1[[#This Row],[Date dernier Versement]]-Tableau1[[#This Row],[Date]]) -> 0 | N142: =Tableau1[[#This Row],[Versement total]]/Tableau1[[#This Row],[Montant]] -> 
G143: =4000*Tableau1[[#This Row],[Cartons Vendus]] -> 0 | H143: Erreur | I143: 0 | J143: 0 | L143: =Tableau1[[#This Row],[Montant]]-Tableau1[[#This Row],[Versement total]] -> 0 | M143: =IF(Tableau1[[#This Row],[Montant]]>Tableau1[[#This Row],[Versement total]],TODAY()-Tableau1[[#This Row],[Date]],Tableau1[[#This Row],[Date dernier Versement]]-Tableau1[[#This Row],[Date]]) -> 0 | N143: =Tableau1[[#This Row],[Versement total]]/Tableau1[[#This Row],[Montant]] -> 
G144: =4000*Tableau1[[#This Row],[Cartons Vendus]] -> 0 | H144: Erreur | I144: 0 | J144: 0 | L144: =Tableau1[[#This Row],[Montant]]-Tableau1[[#This Row],[Versement total]] -> 0 | M144: =IF(Tableau1[[#This Row],[Montant]]>Tableau1[[#This Row],[Versement total]],TODAY()-Tableau1[[#This Row],[Date]],Tableau1[[#This Row],[Date dernier Versement]]-Tableau1[[#This Row],[Date]]) -> 0 | N144: =Tableau1[[#This Row],[Versement total]]/Tableau1[[#This Row],[Montant]] -> 
G145: =4000*Tableau1[[#This Row],[Cartons Vendus]] -> 0 | H145: Erreur | I145: 0 | J145: 0 | L145: =Tableau1[[#This Row],[Montant]]-Tableau1[[#This Row],[Versement total]] -> 0 | M145: =IF(Tableau1[[#This Row],[Montant]]>Tableau1[[#This Row],[Versement total]],TODAY()-Tableau1[[#This Row],[Date]],Tableau1[[#This Row],[Date dernier Versement]]-Tableau1[[#This Row],[Date]]) -> 0 | N145: =Tableau1[[#This Row],[Versement total]]/Tableau1[[#This Row],[Montant]] -> 
G146: =4000*Tableau1[[#This Row],[Cartons Vendus]] -> 0 | H146: Erreur | I146: 0 | J146: 0 | L146: =Tableau1[[#This Row],[Montant]]-Tableau1[[#This Row],[Versement total]] -> 0 | M146: =IF(Tableau1[[#This Row],[Montant]]>Tableau1[[#This Row],[Versement total]],TODAY()-Tableau1[[#This Row],[Date]],Tableau1[[#This Row],[Date dernier Versement]]-Tableau1[[#This Row],[Date]]) -> 0 | N146: =Tableau1[[#This Row],[Versement total]]/Tableau1[[#This Row],[Montant]] -> 
G147: =4000*Tableau1[[#This Row],[Cartons Vendus]] -> 0 | H147: Erreur | I147: 0 | J147: 0 | L147: =Tableau1[[#This Row],[Montant]]-Tableau1[[#This Row],[Versement total]] -> 0 | M147: =IF(Tableau1[[#This Row],[Montant]]>Tableau1[[#This Row],[Versement total]],TODAY()-Tableau1[[#This Row],[Date]],Tableau1[[#This Row],[Date dernier Versement]]-Tableau1[[#This Row],[Date]]) -> 0 | N147: =Tableau1[[#This Row],[Versement total]]/Tableau1[[#This Row],[Montant]] -> 
G148: =4000*Tableau1[[#This Row],[Cartons Vendus]] -> 0 | H148: Erreur | I148: 0 | J148: 0 | L148: =Tableau1[[#This Row],[Montant]]-Tableau1[[#This Row],[Versement total]] -> 0 | M148: =IF(Tableau1[[#This Row],[Montant]]>Tableau1[[#This Row],[Versement total]],TODAY()-Tableau1[[#This Row],[Date]],Tableau1[[#This Row],[Date dernier Versement]]-Tableau1[[#This Row],[Date]]) -> 0 | N148: =Tableau1[[#This Row],[Versement total]]/Tableau1[[#This Row],[Montant]] -> 
G149: =4000*Tableau1[[#This Row],[Cartons Vendus]] -> 0 | H149: Erreur | I149: 0 | J149: 0 | L149: =Tableau1[[#This Row],[Montant]]-Tableau1[[#This Row],[Versement total]] -> 0 | M149: =IF(Tableau1[[#This Row],[Montant]]>Tableau1[[#This Row],[Versement total]],TODAY()-Tableau1[[#This Row],[Date]],Tableau1[[#This Row],[Date dernier Versement]]-Tableau1[[#This Row],[Date]]) -> 0 | N149: =Tableau1[[#This Row],[Versement total]]/Tableau1[[#This Row],[Montant]] -> 
G150: =4000*Tableau1[[#This Row],[Cartons Vendus]] -> 0 | H150: Erreur | I150: 0 | J150: 0 | L150: =Tableau1[[#This Row],[Montant]]-Tableau1[[#This Row],[Versement total]] -> 0 | M150: =IF(Tableau1[[#This Row],[Montant]]>Tableau1[[#This Row],[Versement total]],TODAY()-Tableau1[[#This Row],[Date]],Tableau1[[#This Row],[Date dernier Versement]]-Tableau1[[#This Row],[Date]]) -> 0 | N150: =Tableau1[[#This Row],[Versement total]]/Tableau1[[#This Row],[Montant]] -> 
G151: =4000*Tableau1[[#This Row],[Cartons Vendus]] -> 0 | H151: Erreur | I151: 0 | J151: 0 | L151: =Tableau1[[#This Row],[Montant]]-Tableau1[[#This Row],[Versement total]] -> 0 | M151: =IF(Tableau1[[#This Row],[Montant]]>Tableau1[[#This Row],[Versement total]],TODAY()-Tableau1[[#This Row],[Date]],Tableau1[[#This Row],[Date dernier Versement]]-Tableau1[[#This Row],[Date]]) -> 0 | N151: =Tableau1[[#This Row],[Versement total]]/Tableau1[[#This Row],[Montant]] -> 
G152: =4000*Tableau1[[#This Row],[Cartons Vendus]] -> 0 | H152: Erreur | I152: 0 | J152: 0 | L152: =Tableau1[[#This Row],[Montant]]-Tableau1[[#This Row],[Versement total]] -> 0 | M152: =IF(Tableau1[[#This Row],[Montant]]>Tableau1[[#This Row],[Versement total]],TODAY()-Tableau1[[#This Row],[Date]],Tableau1[[#This Row],[Date dernier Versement]]-Tableau1[[#This Row],[Date]]) -> 0 | N152: =Tableau1[[#This Row],[Versement total]]/Tableau1[[#This Row],[Montant]] -> 
G153: =4000*Tableau1[[#This Row],[Cartons Vendus]] -> 0 | H153: Erreur | I153: 0 | J153: 0 | L153: =Tableau1[[#This Row],[Montant]]-Tableau1[[#This Row],[Versement total]] -> 0 | M153: =IF(Tableau1[[#This Row],[Montant]]>Tableau1[[#This Row],[Versement total]],TODAY()-Tableau1[[#This Row],[Date]],Tableau1[[#This Row],[Date dernier Versement]]-Tableau1[[#This Row],[Date]]) -> 0 | N153: =Tableau1[[#This Row],[Versement total]]/Tableau1[[#This Row],[Montant]] -> 
G154: =4000*Tableau1[[#This Row],[Cartons Vendus]] -> 0 | H154: Erreur | I154: 0 | J154: 0 | L154: =Tableau1[[#This Row],[Montant]]-Tableau1[[#This Row],[Versement total]] -> 0 | M154: =IF(Tableau1[[#This Row],[Montant]]>Tableau1[[#This Row],[Versement total]],TODAY()-Tableau1[[#This Row],[Date]],Tableau1[[#This Row],[Date dernier Versement]]-Tableau1[[#This Row],[Date]]) -> 0 | N154: =Tableau1[[#This Row],[Versement total]]/Tableau1[[#This Row],[Montant]] -> 
G155: =4000*Tableau1[[#This Row],[Cartons Vendus]] -> 0 | H155: Erreur | I155: 0 | J155: 0 | L155: =Tableau1[[#This Row],[Montant]]-Tableau1[[#This Row],[Versement total]] -> 0 | M155: =IF(Tableau1[[#This Row],[Montant]]>Tableau1[[#This Row],[Versement total]],TODAY()-Tableau1[[#This Row],[Date]],Tableau1[[#This Row],[Date dernier Versement]]-Tableau1[[#This Row],[Date]]) -> 0 | N155: =Tableau1[[#This Row],[Versement total]]/Tableau1[[#This Row],[Montant]] -> 
G156: =4000*Tableau1[[#This Row],[Cartons Vendus]] -> 0 | H156: Erreur | I156: 0 | J156: 0 | L156: =Tableau1[[#This Row],[Montant]]-Tableau1[[#This Row],[Versement total]] -> 0 | M156: =IF(Tableau1[[#This Row],[Montant]]>Tableau1[[#This Row],[Versement total]],TODAY()-Tableau1[[#This Row],[Date]],Tableau1[[#This Row],[Date dernier Versement]]-Tableau1[[#This Row],[Date]]) -> 0 | N156: =Tableau1[[#This Row],[Versement total]]/Tableau1[[#This Row],[Montant]] -> 
G157: =4000*Tableau1[[#This Row],[Cartons Vendus]] -> 0 | H157: Erreur | I157: 0 | J157: 0 | L157: =Tableau1[[#This Row],[Montant]]-Tableau1[[#This Row],[Versement total]] -> 0 | M157: =IF(Tableau1[[#This Row],[Montant]]>Tableau1[[#This Row],[Versement total]],TODAY()-Tableau1[[#This Row],[Date]],Tableau1[[#This Row],[Date dernier Versement]]-Tableau1[[#This Row],[Date]]) -> 0 | N157: =Tableau1[[#This Row],[Versement total]]/Tableau1[[#This Row],[Montant]] -> 
G158: =4000*Tableau1[[#This Row],[Cartons Vendus]] -> 0 | H158: Erreur | I158: 0 | J158: 0 | L158: =Tableau1[[#This Row],[Montant]]-Tableau1[[#This Row],[Versement total]] -> 0 | M158: =IF(Tableau1[[#This Row],[Montant]]>Tableau1[[#This Row],[Versement total]],TODAY()-Tableau1[[#This Row],[Date]],Tableau1[[#This Row],[Date dernier Versement]]-Tableau1[[#This Row],[Date]]) -> 0 | N158: =Tableau1[[#This Row],[Versement total]]/Tableau1[[#This Row],[Montant]] -> 
G159: =4000*Tableau1[[#This Row],[Cartons Vendus]] -> 0 | H159: Erreur | I159: 0 | J159: 0 | L159: =Tableau1[[#This Row],[Montant]]-Tableau1[[#This Row],[Versement total]] -> 0 | M159: =IF(Tableau1[[#This Row],[Montant]]>Tableau1[[#This Row],[Versement total]],TODAY()-Tableau1[[#This Row],[Date]],Tableau1[[#This Row],[Date dernier Versement]]-Tableau1[[#This Row],[Date]]) -> 0 | N159: =Tableau1[[#This Row],[Versement total]]/Tableau1[[#This Row],[Montant]] -> 
G160: =4000*Tableau1[[#This Row],[Cartons Vendus]] -> 0 | H160: Erreur | I160: 0 | J160: 0 | L160: =Tableau1[[#This Row],[Montant]]-Tableau1[[#This Row],[Versement total]] -> 0 | M160: =IF(Tableau1[[#This Row],[Montant]]>Tableau1[[#This Row],[Versement total]],TODAY()-Tableau1[[#This Row],[Date]],Tableau1[[#This Row],[Date dernier Versement]]-Tableau1[[#This Row],[Date]]) -> 0 | N160: =Tableau1[[#This Row],[Versement total]]/Tableau1[[#This Row],[Montant]] -> 
G161: =4000*Tableau1[[#This Row],[Cartons Vendus]] -> 0 | H161: Erreur | I161: 0 | J161: 0 | L161: =Tableau1[[#This Row],[Montant]]-Tableau1[[#This Row],[Versement total]] -> 0 | M161: =IF(Tableau1[[#This Row],[Montant]]>Tableau1[[#This Row],[Versement total]],TODAY()-Tableau1[[#This Row],[Date]],Tableau1[[#This Row],[Date dernier Versement]]-Tableau1[[#This Row],[Date]]) -> 0 | N161: =Tableau1[[#This Row],[Versement total]]/Tableau1[[#This Row],[Montant]] -> 
G162: =4000*Tableau1[[#This Row],[Cartons Vendus]] -> 0 | H162: Erreur | I162: 0 | J162: 0 | L162: =Tableau1[[#This Row],[Montant]]-Tableau1[[#This Row],[Versement total]] -> 0 | M162: =IF(Tableau1[[#This Row],[Montant]]>Tableau1[[#This Row],[Versement total]],TODAY()-Tableau1[[#This Row],[Date]],Tableau1[[#This Row],[Date dernier Versement]]-Tableau1[[#This Row],[Date]]) -> 0 | N162: =Tableau1[[#This Row],[Versement total]]/Tableau1[[#This Row],[Montant]] -> 
G163: =4000*Tableau1[[#This Row],[Cartons Vendus]] -> 0 | H163: Erreur | I163: 0 | J163: 0 | L163: =Tableau1[[#This Row],[Montant]]-Tableau1[[#This Row],[Versement total]] -> 0 | M163: =IF(Tableau1[[#This Row],[Montant]]>Tableau1[[#This Row],[Versement total]],TODAY()-Tableau1[[#This Row],[Date]],Tableau1[[#This Row],[Date dernier Versement]]-Tableau1[[#This Row],[Date]]) -> 0 | N163: =Tableau1[[#This Row],[Versement total]]/Tableau1[[#This Row],[Montant]] -> 
G164: =4000*Tableau1[[#This Row],[Cartons Vendus]] -> 0 | H164: Erreur | I164: 0 | J164: 0 | L164: =Tableau1[[#This Row],[Montant]]-Tableau1[[#This Row],[Versement total]] -> 0 | M164: =IF(Tableau1[[#This Row],[Montant]]>Tableau1[[#This Row],[Versement total]],TODAY()-Tableau1[[#This Row],[Date]],Tableau1[[#This Row],[Date dernier Versement]]-Tableau1[[#This Row],[Date]]) -> 0 | N164: =Tableau1[[#This Row],[Versement total]]/Tableau1[[#This Row],[Montant]] -> 
G165: =4000*Tableau1[[#This Row],[Cartons Vendus]] -> 0 | H165: Erreur | I165: 0 | J165: 0 | L165: =Tableau1[[#This Row],[Montant]]-Tableau1[[#This Row],[Versement total]] -> 0 | M165: =IF(Tableau1[[#This Row],[Montant]]>Tableau1[[#This Row],[Versement total]],TODAY()-Tableau1[[#This Row],[Date]],Tableau1[[#This Row],[Date dernier Versement]]-Tableau1[[#This Row],[Date]]) -> 0 | N165: =Tableau1[[#This Row],[Versement total]]/Tableau1[[#This Row],[Montant]] -> 
G166: =4000*Tableau1[[#This Row],[Cartons Vendus]] -> 0 | H166: Erreur | I166: 0 | J166: 0 | L166: =Tableau1[[#This Row],[Montant]]-Tableau1[[#This Row],[Versement total]] -> 0 | M166: =IF(Tableau1[[#This Row],[Montant]]>Tableau1[[#This Row],[Versement total]],TODAY()-Tableau1[[#This Row],[Date]],Tableau1[[#This Row],[Date dernier Versement]]-Tableau1[[#This Row],[Date]]) -> 0 | N166: =Tableau1[[#This Row],[Versement total]]/Tableau1[[#This Row],[Montant]] -> 
G167: =4000*Tableau1[[#This Row],[Cartons Vendus]] -> 0 | H167: Erreur | I167: 0 | J167: 0 | L167: =Tableau1[[#This Row],[Montant]]-Tableau1[[#This Row],[Versement total]] -> 0 | M167: =IF(Tableau1[[#This Row],[Montant]]>Tableau1[[#This Row],[Versement total]],TODAY()-Tableau1[[#This Row],[Date]],Tableau1[[#This Row],[Date dernier Versement]]-Tableau1[[#This Row],[Date]]) -> 0 | N167: =Tableau1[[#This Row],[Versement total]]/Tableau1[[#This Row],[Montant]] -> 
G168: =4000*Tableau1[[#This Row],[Cartons Vendus]] -> 0 | H168: Erreur | I168: 0 | J168: 0 | L168: =Tableau1[[#This Row],[Montant]]-Tableau1[[#This Row],[Versement total]] -> 0 | M168: =IF(Tableau1[[#This Row],[Montant]]>Tableau1[[#This Row],[Versement total]],TODAY()-Tableau1[[#This Row],[Date]],Tableau1[[#This Row],[Date dernier Versement]]-Tableau1[[#This Row],[Date]]) -> 0 | N168: =Tableau1[[#This Row],[Versement total]]/Tableau1[[#This Row],[Montant]] -> 
G169: =4000*Tableau1[[#This Row],[Cartons Vendus]] -> 0 | H169: Erreur | I169: 0 | J169: 0 | L169: =Tableau1[[#This Row],[Montant]]-Tableau1[[#This Row],[Versement total]] -> 0 | M169: =IF(Tableau1[[#This Row],[Montant]]>Tableau1[[#This Row],[Versement total]],TODAY()-Tableau1[[#This Row],[Date]],Tableau1[[#This Row],[Date dernier Versement]]-Tableau1[[#This Row],[Date]]) -> 0 | N169: =Tableau1[[#This Row],[Versement total]]/Tableau1[[#This Row],[Montant]] -> 
G170: =4000*Tableau1[[#This Row],[Cartons Vendus]] -> 0 | H170: Erreur | I170: 0 | J170: 0 | L170: =Tableau1[[#This Row],[Montant]]-Tableau1[[#This Row],[Versement total]] -> 0 | M170: =IF(Tableau1[[#This Row],[Montant]]>Tableau1[[#This Row],[Versement total]],TODAY()-Tableau1[[#This Row],[Date]],Tableau1[[#This Row],[Date dernier Versement]]-Tableau1[[#This Row],[Date]]) -> 0 | N170: =Tableau1[[#This Row],[Versement total]]/Tableau1[[#This Row],[Montant]] -> 
G171: =4000*Tableau1[[#This Row],[Cartons Vendus]] -> 0 | H171: Erreur | I171: 0 | J171: 0 | L171: =Tableau1[[#This Row],[Montant]]-Tableau1[[#This Row],[Versement total]] -> 0 | M171: =IF(Tableau1[[#This Row],[Montant]]>Tableau1[[#This Row],[Versement total]],TODAY()-Tableau1[[#This Row],[Date]],Tableau1[[#This Row],[Date dernier Versement]]-Tableau1[[#This Row],[Date]]) -> 0 | N171: =Tableau1[[#This Row],[Versement total]]/Tableau1[[#This Row],[Montant]] -> 
G172: =4000*Tableau1[[#This Row],[Cartons Vendus]] -> 0 | H172: Erreur | I172: 0 | J172: 0 | L172: =Tableau1[[#This Row],[Montant]]-Tableau1[[#This Row],[Versement total]] -> 0 | M172: =IF(Tableau1[[#This Row],[Montant]]>Tableau1[[#This Row],[Versement total]],TODAY()-Tableau1[[#This Row],[Date]],Tableau1[[#This Row],[Date dernier Versement]]-Tableau1[[#This Row],[Date]]) -> 0 | N172: =Tableau1[[#This Row],[Versement total]]/Tableau1[[#This Row],[Montant]] -> 
G173: =4000*Tableau1[[#This Row],[Cartons Vendus]] -> 0 | H173: Erreur | I173: 0 | J173: 0 | L173: =Tableau1[[#This Row],[Montant]]-Tableau1[[#This Row],[Versement total]] -> 0 | M173: =IF(Tableau1[[#This Row],[Montant]]>Tableau1[[#This Row],[Versement total]],TODAY()-Tableau1[[#This Row],[Date]],Tableau1[[#This Row],[Date dernier Versement]]-Tableau1[[#This Row],[Date]]) -> 0 | N173: =Tableau1[[#This Row],[Versement total]]/Tableau1[[#This Row],[Montant]] -> 
G174: =4000*Tableau1[[#This Row],[Cartons Vendus]] -> 0 | H174: Erreur | I174: 0 | J174: 0 | L174: =Tableau1[[#This Row],[Montant]]-Tableau1[[#This Row],[Versement total]] -> 0 | M174: =IF(Tableau1[[#This Row],[Montant]]>Tableau1[[#This Row],[Versement total]],TODAY()-Tableau1[[#This Row],[Date]],Tableau1[[#This Row],[Date dernier Versement]]-Tableau1[[#This Row],[Date]]) -> 0 | N174: =Tableau1[[#This Row],[Versement total]]/Tableau1[[#This Row],[Montant]] -> 
G175: =4000*Tableau1[[#This Row],[Cartons Vendus]] -> 0 | H175: Erreur | I175: 0 | J175: 0 | L175: =Tableau1[[#This Row],[Montant]]-Tableau1[[#This Row],[Versement total]] -> 0 | M175: =IF(Tableau1[[#This Row],[Montant]]>Tableau1[[#This Row],[Versement total]],TODAY()-Tableau1[[#This Row],[Date]],Tableau1[[#This Row],[Date dernier Versement]]-Tableau1[[#This Row],[Date]]) -> 0 | N175: =Tableau1[[#This Row],[Versement total]]/Tableau1[[#This Row],[Montant]] -> 
G176: =4000*Tableau1[[#This Row],[Cartons Vendus]] -> 0 | H176: Erreur | I176: 0 | J176: 0 | L176: =Tableau1[[#This Row],[Montant]]-Tableau1[[#This Row],[Versement total]] -> 0 | M176: =IF(Tableau1[[#This Row],[Montant]]>Tableau1[[#This Row],[Versement total]],TODAY()-Tableau1[[#This Row],[Date]],Tableau1[[#This Row],[Date dernier Versement]]-Tableau1[[#This Row],[Date]]) -> 0 | N176: =Tableau1[[#This Row],[Versement total]]/Tableau1[[#This Row],[Montant]] -> 
G177: =4000*Tableau1[[#This Row],[Cartons Vendus]] -> 0 | H177: Erreur | I177: 0 | J177: 0 | L177: =Tableau1[[#This Row],[Montant]]-Tableau1[[#This Row],[Versement total]] -> 0 | M177: =IF(Tableau1[[#This Row],[Montant]]>Tableau1[[#This Row],[Versement total]],TODAY()-Tableau1[[#This Row],[Date]],Tableau1[[#This Row],[Date dernier Versement]]-Tableau1[[#This Row],[Date]]) -> 0 | N177: =Tableau1[[#This Row],[Versement total]]/Tableau1[[#This Row],[Montant]] -> 
G178: =4000*Tableau1[[#This Row],[Cartons Vendus]] -> 0 | H178: Erreur | I178: 0 | J178: 0 | L178: =Tableau1[[#This Row],[Montant]]-Tableau1[[#This Row],[Versement total]] -> 0 | M178: =IF(Tableau1[[#This Row],[Montant]]>Tableau1[[#This Row],[Versement total]],TODAY()-Tableau1[[#This Row],[Date]],Tableau1[[#This Row],[Date dernier Versement]]-Tableau1[[#This Row],[Date]]) -> 0 | N178: =Tableau1[[#This Row],[Versement total]]/Tableau1[[#This Row],[Montant]] -> 
G179: =4000*Tableau1[[#This Row],[Cartons Vendus]] -> 0 | H179: Erreur | I179: 0 | J179: 0 | L179: =Tableau1[[#This Row],[Montant]]-Tableau1[[#This Row],[Versement total]] -> 0 | M179: =IF(Tableau1[[#This Row],[Montant]]>Tableau1[[#This Row],[Versement total]],TODAY()-Tableau1[[#This Row],[Date]],Tableau1[[#This Row],[Date dernier Versement]]-Tableau1[[#This Row],[Date]]) -> 0 | N179: =Tableau1[[#This Row],[Versement total]]/Tableau1[[#This Row],[Montant]] -> 
G180: =4000*Tableau1[[#This Row],[Cartons Vendus]] -> 0 | H180: Erreur | I180: 0 | J180: 0 | L180: =Tableau1[[#This Row],[Montant]]-Tableau1[[#This Row],[Versement total]] -> 0 | M180: =IF(Tableau1[[#This Row],[Montant]]>Tableau1[[#This Row],[Versement total]],TODAY()-Tableau1[[#This Row],[Date]],Tableau1[[#This Row],[Date dernier Versement]]-Tableau1[[#This Row],[Date]]) -> 0 | N180: =Tableau1[[#This Row],[Versement total]]/Tableau1[[#This Row],[Montant]] -> 
G181: =4000*Tableau1[[#This Row],[Cartons Vendus]] -> 0 | H181: Erreur | I181: 0 | J181: 0 | L181: =Tableau1[[#This Row],[Montant]]-Tableau1[[#This Row],[Versement total]] -> 0 | M181: =IF(Tableau1[[#This Row],[Montant]]>Tableau1[[#This Row],[Versement total]],TODAY()-Tableau1[[#This Row],[Date]],Tableau1[[#This Row],[Date dernier Versement]]-Tableau1[[#This Row],[Date]]) -> 0 | N181: =Tableau1[[#This Row],[Versement total]]/Tableau1[[#This Row],[Montant]] -> 
G182: =4000*Tableau1[[#This Row],[Cartons Vendus]] -> 0 | H182: Erreur | I182: 0 | J182: 0 | L182: =Tableau1[[#This Row],[Montant]]-Tableau1[[#This Row],[Versement total]] -> 0 | M182: =IF(Tableau1[[#This Row],[Montant]]>Tableau1[[#This Row],[Versement total]],TODAY()-Tableau1[[#This Row],[Date]],Tableau1[[#This Row],[Date dernier Versement]]-Tableau1[[#This Row],[Date]]) -> 0 | N182: =Tableau1[[#This Row],[Versement total]]/Tableau1[[#This Row],[Montant]] -> 
G183: =4000*Tableau1[[#This Row],[Cartons Vendus]] -> 0 | H183: Erreur | I183: 0 | J183: 0 | L183: =Tableau1[[#This Row],[Montant]]-Tableau1[[#This Row],[Versement total]] -> 0 | M183: =IF(Tableau1[[#This Row],[Montant]]>Tableau1[[#This Row],[Versement total]],TODAY()-Tableau1[[#This Row],[Date]],Tableau1[[#This Row],[Date dernier Versement]]-Tableau1[[#This Row],[Date]]) -> 0 | N183: =Tableau1[[#This Row],[Versement total]]/Tableau1[[#This Row],[Montant]] -> 
G184: =4000*Tableau1[[#This Row],[Cartons Vendus]] -> 0 | H184: Erreur | I184: 0 | J184: 0 | L184: =Tableau1[[#This Row],[Montant]]-Tableau1[[#This Row],[Versement total]] -> 0 | M184: =IF(Tableau1[[#This Row],[Montant]]>Tableau1[[#This Row],[Versement total]],TODAY()-Tableau1[[#This Row],[Date]],Tableau1[[#This Row],[Date dernier Versement]]-Tableau1[[#This Row],[Date]]) -> 0 | N184: =Tableau1[[#This Row],[Versement total]]/Tableau1[[#This Row],[Montant]] -> 
G185: =4000*Tableau1[[#This Row],[Cartons Vendus]] -> 0 | H185: Erreur | I185: 0 | J185: 0 | L185: =Tableau1[[#This Row],[Montant]]-Tableau1[[#This Row],[Versement total]] -> 0 | M185: =IF(Tableau1[[#This Row],[Montant]]>Tableau1[[#This Row],[Versement total]],TODAY()-Tableau1[[#This Row],[Date]],Tableau1[[#This Row],[Date dernier Versement]]-Tableau1[[#This Row],[Date]]) -> 0 | N185: =Tableau1[[#This Row],[Versement total]]/Tableau1[[#This Row],[Montant]] -> 
G186: =4000*Tableau1[[#This Row],[Cartons Vendus]] -> 0 | H186: Erreur | I186: 0 | J186: 0 | L186: =Tableau1[[#This Row],[Montant]]-Tableau1[[#This Row],[Versement total]] -> 0 | M186: =IF(Tableau1[[#This Row],[Montant]]>Tableau1[[#This Row],[Versement total]],TODAY()-Tableau1[[#This Row],[Date]],Tableau1[[#This Row],[Date dernier Versement]]-Tableau1[[#This Row],[Date]]) -> 0 | N186: =Tableau1[[#This Row],[Versement total]]/Tableau1[[#This Row],[Montant]] -> 
G187: =4000*Tableau1[[#This Row],[Cartons Vendus]] -> 0 | H187: Erreur | I187: 0 | J187: 0 | L187: =Tableau1[[#This Row],[Montant]]-Tableau1[[#This Row],[Versement total]] -> 0 | M187: =IF(Tableau1[[#This Row],[Montant]]>Tableau1[[#This Row],[Versement total]],TODAY()-Tableau1[[#This Row],[Date]],Tableau1[[#This Row],[Date dernier Versement]]-Tableau1[[#This Row],[Date]]) -> 0 | N187: =Tableau1[[#This Row],[Versement total]]/Tableau1[[#This Row],[Montant]] -> 
G188: =4000*Tableau1[[#This Row],[Cartons Vendus]] -> 0 | H188: Erreur | I188: 0 | J188: 0 | L188: =Tableau1[[#This Row],[Montant]]-Tableau1[[#This Row],[Versement total]] -> 0 | M188: =IF(Tableau1[[#This Row],[Montant]]>Tableau1[[#This Row],[Versement total]],TODAY()-Tableau1[[#This Row],[Date]],Tableau1[[#This Row],[Date dernier Versement]]-Tableau1[[#This Row],[Date]]) -> 0 | N188: =Tableau1[[#This Row],[Versement total]]/Tableau1[[#This Row],[Montant]] -> 
G189: =4000*Tableau1[[#This Row],[Cartons Vendus]] -> 0 | H189: Erreur | I189: 0 | J189: 0 | L189: =Tableau1[[#This Row],[Montant]]-Tableau1[[#This Row],[Versement total]] -> 0 | M189: =IF(Tableau1[[#This Row],[Montant]]>Tableau1[[#This Row],[Versement total]],TODAY()-Tableau1[[#This Row],[Date]],Tableau1[[#This Row],[Date dernier Versement]]-Tableau1[[#This Row],[Date]]) -> 0 | N189: =Tableau1[[#This Row],[Versement total]]/Tableau1[[#This Row],[Montant]] -> 
G190: =4000*Tableau1[[#This Row],[Cartons Vendus]] -> 0 | H190: Erreur | I190: 0 | J190: 0 | L190: =Tableau1[[#This Row],[Montant]]-Tableau1[[#This Row],[Versement total]] -> 0 | M190: =IF(Tableau1[[#This Row],[Montant]]>Tableau1[[#This Row],[Versement total]],TODAY()-Tableau1[[#This Row],[Date]],Tableau1[[#This Row],[Date dernier Versement]]-Tableau1[[#This Row],[Date]]) -> 0 | N190: =Tableau1[[#This Row],[Versement total]]/Tableau1[[#This Row],[Montant]] -> 
G191: =4000*Tableau1[[#This Row],[Cartons Vendus]] -> 0 | H191: Erreur | I191: 0 | J191: 0 | L191: =Tableau1[[#This Row],[Montant]]-Tableau1[[#This Row],[Versement total]] -> 0 | M191: =IF(Tableau1[[#This Row],[Montant]]>Tableau1[[#This Row],[Versement total]],TODAY()-Tableau1[[#This Row],[Date]],Tableau1[[#This Row],[Date dernier Versement]]-Tableau1[[#This Row],[Date]]) -> 0 | N191: =Tableau1[[#This Row],[Versement total]]/Tableau1[[#This Row],[Montant]] -> 
G192: =4000*Tableau1[[#This Row],[Cartons Vendus]] -> 0 | H192: Erreur | I192: 0 | J192: 0 | L192: =Tableau1[[#This Row],[Montant]]-Tableau1[[#This Row],[Versement total]] -> 0 | M192: =IF(Tableau1[[#This Row],[Montant]]>Tableau1[[#This Row],[Versement total]],TODAY()-Tableau1[[#This Row],[Date]],Tableau1[[#This Row],[Date dernier Versement]]-Tableau1[[#This Row],[Date]]) -> 0 | N192: =Tableau1[[#This Row],[Versement total]]/Tableau1[[#This Row],[Montant]] -> 
G193: =4000*Tableau1[[#This Row],[Cartons Vendus]] -> 0 | H193: Erreur | I193: 0 | J193: 0 | L193: =Tableau1[[#This Row],[Montant]]-Tableau1[[#This Row],[Versement total]] -> 0 | M193: =IF(Tableau1[[#This Row],[Montant]]>Tableau1[[#This Row],[Versement total]],TODAY()-Tableau1[[#This Row],[Date]],Tableau1[[#This Row],[Date dernier Versement]]-Tableau1[[#This Row],[Date]]) -> 0 | N193: =Tableau1[[#This Row],[Versement total]]/Tableau1[[#This Row],[Montant]] -> 
G194: =4000*Tableau1[[#This Row],[Cartons Vendus]] -> 0 | H194: Erreur | I194: 0 | J194: 0 | L194: =Tableau1[[#This Row],[Montant]]-Tableau1[[#This Row],[Versement total]] -> 0 | M194: =IF(Tableau1[[#This Row],[Montant]]>Tableau1[[#This Row],[Versement total]],TODAY()-Tableau1[[#This Row],[Date]],Tableau1[[#This Row],[Date dernier Versement]]-Tableau1[[#This Row],[Date]]) -> 0 | N194: =Tableau1[[#This Row],[Versement total]]/Tableau1[[#This Row],[Montant]] -> 
G195: =4000*Tableau1[[#This Row],[Cartons Vendus]] -> 0 | H195: Erreur | I195: 0 | J195: 0 | L195: =Tableau1[[#This Row],[Montant]]-Tableau1[[#This Row],[Versement total]] -> 0 | M195: =IF(Tableau1[[#This Row],[Montant]]>Tableau1[[#This Row],[Versement total]],TODAY()-Tableau1[[#This Row],[Date]],Tableau1[[#This Row],[Date dernier Versement]]-Tableau1[[#This Row],[Date]]) -> 0 | N195: =Tableau1[[#This Row],[Versement total]]/Tableau1[[#This Row],[Montant]] -> 
C196: =A:A&B:B ->  | G196: =4000*Tableau1[[#This Row],[Cartons Vendus]] -> 0 | H196: Erreur | I196: 0 | J196: 0 | L196: =Tableau1[[#This Row],[Montant]]-Tableau1[[#This Row],[Versement total]] -> 0 | M196: =IF(Tableau1[[#This Row],[Montant]]>Tableau1[[#This Row],[Versement total]],TODAY()-Tableau1[[#This Row],[Date]],Tableau1[[#This Row],[Date dernier Versement]]-Tableau1[[#This Row],[Date]]) -> 0 | N196: =Tableau1[[#This Row],[Versement total]]/Tableau1[[#This Row],[Montant]] -> 
G197: =4000*Tableau1[[#This Row],[Cartons Vendus]] -> 0 | H197: Erreur | I197: 0 | J197: 0 | L197: =Tableau1[[#This Row],[Montant]]-Tableau1[[#This Row],[Versement total]] -> 0 | M197: =IF(Tableau1[[#This Row],[Montant]]>Tableau1[[#This Row],[Versement total]],TODAY()-Tableau1[[#This Row],[Date]],Tableau1[[#This Row],[Date dernier Versement]]-Tableau1[[#This Row],[Date]]) -> 0 | N197: =Tableau1[[#This Row],[Versement total]]/Tableau1[[#This Row],[Montant]] -> 
G198: =4000*Tableau1[[#This Row],[Cartons Vendus]] -> 0 | H198: =IF(AND(ISBLANK(A198),E198<>0,G198<40000),"échantillon", IF(AND(G198>0,G198=I198,G198=J198,A198<>0,F198=K198),"Payé en Espèce", IF(AND(I198<G198,A198<>0,I198>=J198,TODAY()-F198<45),"Nouvelle Créance", IF(AND(I198<G198,A198<>0,I198>=J198,TODAY()-F198>=45),"Ancienne Créance", IF(AND(G198=I198,A198<>0,I198>=J198,J198>0,K198-F198>0),"Rembourssement Terminé", "Erreur"))))) -> Erreur | I198: 0 | J198: 0 | L198: =Tableau1[[#This Row],[Montant]]-Tableau1[[#This Row],[Versement total]] -> 0 | M198: =IF(Tableau1[[#This Row],[Montant]]>Tableau1[[#This Row],[Versement total]],TODAY()-Tableau1[[#This Row],[Date]],Tableau1[[#This Row],[Date dernier Versement]]-Tableau1[[#This Row],[Date]]) -> 0 | N198: =Tableau1[[#This Row],[Versement total]]/Tableau1[[#This Row],[Montant]] -> 
G199: =4000*Tableau1[[#This Row],[Cartons Vendus]] -> 0 | H199: Erreur | I199: 0 | J199: 0 | L199: =Tableau1[[#This Row],[Montant]]-Tableau1[[#This Row],[Versement total]] -> 0 | M199: =IF(Tableau1[[#This Row],[Montant]]>Tableau1[[#This Row],[Versement total]],TODAY()-Tableau1[[#This Row],[Date]],Tableau1[[#This Row],[Date dernier Versement]]-Tableau1[[#This Row],[Date]]) -> 0 | N199: =Tableau1[[#This Row],[Versement total]]/Tableau1[[#This Row],[Montant]] -> 
G200: =4000*Tableau1[[#This Row],[Cartons Vendus]] -> 0 | H200: Erreur | I200: 0 | J200: 0 | L200: =Tableau1[[#This Row],[Montant]]-Tableau1[[#This Row],[Versement total]] -> 0 | M200: =IF(Tableau1[[#This Row],[Montant]]>Tableau1[[#This Row],[Versement total]],TODAY()-Tableau1[[#This Row],[Date]],Tableau1[[#This Row],[Date dernier Versement]]-Tableau1[[#This Row],[Date]]) -> 0 | N200: =Tableau1[[#This Row],[Versement total]]/Tableau1[[#This Row],[Montant]] -> 
G201: =4000*Tableau1[[#This Row],[Cartons Vendus]] -> 0 | H201: Erreur | I201: 0 | J201: 0 | L201: =Tableau1[[#This Row],[Montant]]-Tableau1[[#This Row],[Versement total]] -> 0 | M201: =IF(Tableau1[[#This Row],[Montant]]>Tableau1[[#This Row],[Versement total]],TODAY()-Tableau1[[#This Row],[Date]],Tableau1[[#This Row],[Date dernier Versement]]-Tableau1[[#This Row],[Date]]) -> 0 | N201: =Tableau1[[#This Row],[Versement total]]/Tableau1[[#This Row],[Montant]] -> 
... 1860 more rows

Sheet Remboursements en détail
F1: Ventes | G1: TOTAL | I1: Dates Entré | K1: Somme Payé | M1: Somme Impayé | P1: Pas util
F2: =SUMIFS(F4:F1500,D4:D1500,">="&I2,D4:D1500,"<="&J2) -> 6824 | G2: =SUMIFS(G4:G42,D4:D42,">="&I2,D4:D42,"<="&J2) -> 27096000 | I2: 2018-08-01 | J2: 2018-08-31 | K2: =SUM(R10:R13) -> 19376000 | M2: ??????? | P2: =SUMIFS(P4:P42,D4:D42,">="&I2,D4:D42,"<="&J2) -> 6120000
A3: N Compte | B3: Entreprise | C3: Libellé | D3: Date | E3: N Bon | F3: Qté Vendu | G3: Montant | H3: 1er verst | I3: Date1 | J3: 2èm verst | K3: Date2 | L3: 3èm Verst | M3: Date3 | N3: 4èm Verst | O3: Date4 | P3: Créance Soldé | S3: 1er Solde | T3: 2er Solde | U3: 3er Solde | V3: 4er Solde
A4: C001 | B4: Ousmane Gado | C4: =A:A&B:B -> C001Ousmane Gado | D4: 2018-07-10 | E4: 1 | F4: 300 | G4: 1200000 | H4: 300000 | I4: 2018-07-15 | J4: 300000 | K4: 2018-07-22 | L4: 300000 | M4: 2018-07-28 | N4: 300000 | O4: 2018-08-05 | P4: =Tableau2[[#This Row],[Montant]]-Tableau2[[#This Row],[1er verst]]-Tableau2[[#This Row],[2èm verst]]-Tableau2[[#This Row],[3èm Verst]]-Tableau2[[#This Row],[4èm Verst]] -> 0
A5: C002 | B5: Balatane dare salam | C5: C002Balatane dare salam | D5: 2018-07-10 | E5: 2 | F5: 400 | G5: 1600000 | H5: 500000 | I5: 2018-07-22 | J5: 500000 | K5: 2018-08-12 | L5: 600000 | M5: 2018-09-03 | P5: =Tableau2[[#This Row],[Montant]]-Tableau2[[#This Row],[1er verst]]-Tableau2[[#This Row],[2èm verst]]-Tableau2[[#This Row],[3èm Verst]]-Tableau2[[#This Row],[4èm Verst]] -> 0
A6: C003 | B6: Sani | C6: C003Sani | D6: 2018-07-11 | E6: 3 | F6: 500 | G6: =4000*Tableau2[[#This Row],[Qté Vendu]] -> 2000000 | H6: 2000000 | I6: 2018-07-11 | P6: =Tableau2[[#This Row],[Montant]]-Tableau2[[#This Row],[1er verst]]-Tableau2[[#This Row],[2èm verst]]-Tableau2[[#This Row],[3èm Verst]]-Tableau2[[#This Row],[4èm Verst]] -> 0
A7: C004 | B7: Izrafil | C7: C004Izrafil | D7: 2018-07-12 | E7: 4 | F7: 365 | G7: =4000*Tableau2[[#This Row],[Qté Vendu]] -> 1460000 | H7: 1460000 | I7: 2018-07-12 | P7: =Tableau2[[#This Row],[Montant]]-Tableau2[[#This Row],[1er verst]]-Tableau2[[#This Row],[2èm verst]]-Tableau2[[#This Row],[3èm Verst]]-Tableau2[[#This Row],[4èm Verst]] -> 0
A8: C005 | B8: Adamou Yaro | C8: C005Adamou Yaro | D8: 2018-07-15 | E8: 5 | F8: 1000 | G8: 4000000 | H8: 4000000 | I8: 2018-08-05 | P8: =Tableau2[[#This Row],[Montant]]-Tableau2[[#This Row],[1er verst]]-Tableau2[[#This Row],[2èm verst]]-Tableau2[[#This Row],[3èm Verst]]-Tableau2[[#This Row],[4èm Verst]] -> 0
A9: C006 | B9: Mohamedine | C9: C006Mohamedine | D9: 2018-07-18 | E9: 6 | F9: 400 | G9: =4000*F9 -> 1600000 | H9: 1000000 | I9: 2018-07-31 | J9: 600000 | K9: 2018-08-13 | P9: =Tableau2[[#This Row],[Montant]]-Tableau2[[#This Row],[1er verst]]-Tableau2[[#This Row],[2èm verst]]-Tableau2[[#This Row],[3èm Verst]]-Tableau2[[#This Row],[4èm Verst]] -> 0
A10: C007 | B10: Elhadj moctar | C10: C007Elhadj moctar | D10: 2018-07-18 | E10: 7 | F10: 1000 | G10: =4000*Tableau2[[#This Row],[Qté Vendu]] -> 4000000 | H10: 4000000 | I10: 2018-07-18 | P10: =Tableau2[[#This Row],[Montant]]-Tableau2[[#This Row],[1er verst]]-Tableau2[[#This Row],[2èm verst]]-Tableau2[[#This Row],[3èm Verst]]-Tableau2[[#This Row],[4èm Verst]] -> 0 | Q10: 1er | R10: =SUMIFS(H4:H42,I4:I42,">="&I2,I4:I42,"<="&J2) -> 14846000
A11: C004 | B11: Izrafil | C11: C004Izrafil | D11: 2018-07-18 | E11: 8 | F11: 400 | G11: =4000*Tableau2[[#This Row],[Qté Vendu]] -> 1600000 | H11: 1600000 | I11: 2018-07-18 | P11: =Tableau2[[#This Row],[Montant]]-Tableau2[[#This Row],[1er verst]]-Tableau2[[#This Row],[2èm verst]]-Tableau2[[#This Row],[3èm Verst]]-Tableau2[[#This Row],[4èm Verst]] -> 0 | Q11: 2er | R11: =SUMIFS(J4:J42,K4:K42,">="&I2,K4:K42,"<="&J2) -> 4030000
B12: Hassane Ibrahim | C12: Hassane Ibrahim | D12: 2018-07-18 | F12: 1 | G12: =4000*Tableau2[[#This Row],[Qté Vendu]] -> 4000 | H12: 4000 | I12: 2018-07-18 | P12: =Tableau2[[#This Row],[Montant]]-Tableau2[[#This Row],[1er verst]]-Tableau2[[#This Row],[2èm verst]]-Tableau2[[#This Row],[3èm Verst]]-Tableau2[[#This Row],[4èm Verst]] -> 0 | Q12: 3er | R12: =SUMIFS(L4:L42,M4:M42,">="&I2,M4:M42,"<="&J2) -> 200000
A13: C003 | B13: Sani | C13: C003Sani | D13: 2018-07-19 | E13: 9 | F13: 500 | G13: =4000*F13 -> 2000000 | H13: 1600000 | I13: 2018-07-19 | J13: 400000 | K13: 2018-07-24 | P13: =Tableau2[[#This Row],[Montant]]-Tableau2[[#This Row],[1er verst]]-Tableau2[[#This Row],[2èm verst]]-Tableau2[[#This Row],[3èm Verst]]-Tableau2[[#This Row],[4èm Verst]] -> 0 | Q13: 4er | R13: =SUMIFS(N4:N42,O4:O42,">="&I2,O4:O42,"<="&J2) -> 300000
B14: Ancien Comptable | C14: Ancien Comptable | D14: 2018-07-20 | F14: 1 | G14: =4000*Tableau2[[#This Row],[Qté Vendu]] -> 4000 | H14: 4000 | I14: 2018-07-20 | P14: =Tableau2[[#This Row],[Montant]]-Tableau2[[#This Row],[1er verst]]-Tableau2[[#This Row],[2èm verst]]-Tableau2[[#This Row],[3èm Verst]]-Tableau2[[#This Row],[4èm Verst]] -> 0
B15: Envoi à Zinder | C15: Envoi à Zinder | D15: 2018-07-21 | F15: 2 | G15: =4000*Tableau2[[#This Row],[Qté Vendu]] -> 8000 | H15: 8000 | I15: 2018-07-21 | P15: =Tableau2[[#This Row],[Montant]]-Tableau2[[#This Row],[1er verst]]-Tableau2[[#This Row],[2èm verst]]-Tableau2[[#This Row],[3èm Verst]]-Tableau2[[#This Row],[4èm Verst]] -> 0
B16: Envoi à Maradi | C16: Envoi à Maradi | D16: 2018-07-25 | F16: 1 | G16: 4000 | H16: 4000 | I16: 2018-07-25 | P16: =Tableau2[[#This Row],[Montant]]-Tableau2[[#This Row],[1er verst]]-Tableau2[[#This Row],[2èm verst]]-Tableau2[[#This Row],[3èm Verst]]-Tableau2[[#This Row],[4èm Verst]] -> 0
B17: Tassiou Rabiou | C17: Tassiou Rabiou | D17: 2018-07-30 | F17: 1 | G17: 4000 | H17: 4000 | I17: 2018-07-30 | P17: =Tableau2[[#This Row],[Montant]]-Tableau2[[#This Row],[1er verst]]-Tableau2[[#This Row],[2èm verst]]-Tableau2[[#This Row],[3èm Verst]]-Tableau2[[#This Row],[4èm Verst]] -> 0
B18: Envoi à Togo | C18: Envoi à Togo | D18: 2018-07-30 | F18: 1 | G18: 4000 | H18: 4000 | I18: 2018-07-30 | P18: =Tableau2[[#This Row],[Montant]]-Tableau2[[#This Row],[1er verst]]-Tableau2[[#This Row],[2èm verst]]-Tableau2[[#This Row],[3èm Verst]]-Tableau2[[#This Row],[4èm Verst]] -> 0
B19: D.G | C19: D.G | D19: 2018-08-04 | F19: 1 | G19: 4000 | H19: 4000 | I19: 2018-08-04 | P19: =Tableau2[[#This Row],[Montant]]-Tableau2[[#This Row],[1er verst]]-Tableau2[[#This Row],[2èm verst]]-Tableau2[[#This Row],[3èm Verst]]-Tableau2[[#This Row],[4èm Verst]] -> 0
A20: C007 | B20: Elhadj moctar | C20: C007Elhadj moctar | D20: 2018-08-05 | E20: 10 | F20: 1000 | G20: 4000000 | H20: 4000000 | I20: 2018-08-08 | P20: =Tableau2[[#This Row],[Montant]]-Tableau2[[#This Row],[1er verst]]-Tableau2[[#This Row],[2èm verst]]-Tableau2[[#This Row],[3èm Verst]]-Tableau2[[#This Row],[4èm Verst]] -> 0
A21: C004 | B21: Izrafil | C21: C004Izrafil | D21: 2018-08-05 | E21: 11 | F21: 500 | G21: 2000000 | H21: 2000000 | I21: 2018-08-08 | P21: =Tableau2[[#This Row],[Montant]]-Tableau2[[#This Row],[1er verst]]-Tableau2[[#This Row],[2èm verst]]-Tableau2[[#This Row],[3èm Verst]]-Tableau2[[#This Row],[4èm Verst]] -> 0
A22: C001 | B22: Ousmane Gado | C22: C001Ousmane Gado | D22: 2018-08-05 | E22: 12 | F22: 300 | G22: 1200000 | H22: 300000 | I22: 2018-08-12 | J22: 300000 | K22: 2018-08-19 | L22: 200000 | M22: 2018-08-25 | P22: =Tableau2[[#This Row],[Montant]]-Tableau2[[#This Row],[1er verst]]-Tableau2[[#This Row],[2èm verst]]-Tableau2[[#This Row],[3èm Verst]]-Tableau2[[#This Row],[4èm Verst]] -> 400000
A23: C005 | B23: Adamou Yaro | C23: C005Adamou Yaro | D23: 2018-08-05 | E23: 13 | F23: 1000 | G23: 4000000 | P23: =Tableau2[[#This Row],[Montant]]-Tableau2[[#This Row],[1er verst]]-Tableau2[[#This Row],[2èm verst]]-Tableau2[[#This Row],[3èm Verst]]-Tableau2[[#This Row],[4èm Verst]] -> 4000000
B24: Mohamede | C24: Mohamede | D24: 2018-08-05 | F24: 1 | G24: 4000 | H24: 4000 | I24: 2018-08-05 | P24: =Tableau2[[#This Row],[Montant]]-Tableau2[[#This Row],[1er verst]]-Tableau2[[#This Row],[2èm verst]]-Tableau2[[#This Row],[3èm Verst]]-Tableau2[[#This Row],[4èm Verst]] -> 0
A25: C003 | B25: Sani | C25: C003Sani | D25: 2018-08-09 | E25: 14 | F25: 500 | G25: 2000000 | H25: 1000000 | I25: 2018-08-13 | J25: 1000000 | K25: 2018-08-15 | P25: =Tableau2[[#This Row],[Montant]]-Tableau2[[#This Row],[1er verst]]-Tableau2[[#This Row],[2èm verst]]-Tableau2[[#This Row],[3èm Verst]]-Tableau2[[#This Row],[4èm Verst]] -> 0
B26: Yahouza | C26: Yahouza | D26: 2018-08-11 | F26: 1 | G26: 4000 | H26: 4000 | I26: 2018-08-11 | P26: =Tableau2[[#This Row],[Montant]]-Tableau2[[#This Row],[1er verst]]-Tableau2[[#This Row],[2èm verst]]-Tableau2[[#This Row],[3èm Verst]]-Tableau2[[#This Row],[4èm Verst]] -> 0
A27: C006 | B27: Mohamedine | C27: C006Mohamedine | D27: 2018-08-13 | E27: 15 | F27: 420 | G27: 1680000 | H27: 50000 | I27: 2018-08-13 | J27: 1630000 | K27: 2018-08-30 | P27: =Tableau2[[#This Row],[Montant]]-Tableau2[[#This Row],[1er verst]]-Tableau2[[#This Row],[2èm verst]]-Tableau2[[#This Row],[3èm Verst]]-Tableau2[[#This Row],[4èm Verst]] -> 0
A28: C004 | B28: Izrafil | C28: C004Izrafil | D28: 2018-08-13 | E28: 16 | F28: 400 | G28: 1600000 | H28: 1600000 | I28: 2018-08-15 | P28: =Tableau2[[#This Row],[Montant]]-Tableau2[[#This Row],[1er verst]]-Tableau2[[#This Row],[2èm verst]]-Tableau2[[#This Row],[3èm Verst]]-Tableau2[[#This Row],[4èm Verst]] -> 0
A29: C004 | B29: Izrafil | C29: C004Izrafil | D29: 2018-08-25 | E29: 17 | F29: 400 | G29: 1600000 | H29: 1600000 | I29: 2018-08-28 | P29: =Tableau2[[#This Row],[Montant]]-Tableau2[[#This Row],[1er verst]]-Tableau2[[#This Row],[2èm verst]]-Tableau2[[#This Row],[3èm Verst]]-Tableau2[[#This Row],[4èm Verst]] -> 0
B30: Gardien | C30: Gardien | D30: 2018-08-28 | F30: 1 | G30: 4000 | H30: 4000 | I30: 2018-08-28 | P30: =Tableau2[[#This Row],[Montant]]-Tableau2[[#This Row],[1er verst]]-Tableau2[[#This Row],[2èm verst]]-Tableau2[[#This Row],[3èm Verst]]-Tableau2[[#This Row],[4èm Verst]] -> 0
A31: C001 | B31: Ousmane Gado | C31: C001Ousmane Gado | D31: 2018-08-30 | E31: 18 | F31: 300 | G31: 1200000 | H31: 280000 | I31: 2018-08-30 | P31: =Tableau2[[#This Row],[Montant]]-Tableau2[[#This Row],[1er verst]]-Tableau2[[#This Row],[2èm verst]]-Tableau2[[#This Row],[3èm Verst]]-Tableau2[[#This Row],[4èm Verst]] -> 920000
A32: C007 | B32: Elhadj moctar | C32: C007Elhadj moctar | D32: 2018-08-30 | E32: 19 | F32: 2000 | G32: 7800000 | H32: 7000000 | I32: 2018-09-03 | P32: =Tableau2[[#This Row],[Montant]]-Tableau2[[#This Row],[1er verst]]-Tableau2[[#This Row],[2èm verst]]-Tableau2[[#This Row],[3èm Verst]]-Tableau2[[#This Row],[4èm Verst]] -> 800000
A33: C004 | B33: Izrafil | C33: C004Izrafil | D33: 2018-09-01 | E33: 20 | F33: 400 | G33: 1600000 | H33: 1000000 | I33: 2018-09-03 | P33: =Tableau2[[#This Row],[Montant]]-Tableau2[[#This Row],[1er verst]]-Tableau2[[#This Row],[2èm verst]]-Tableau2[[#This Row],[3èm Verst]]-Tableau2[[#This Row],[4èm Verst]] -> 600000
A34: C006 | B34: Mohamedine | C34: C006Mohamedine | D34: 2018-09-01 | E34: 21 | F34: 400 | G34: =4000*Tableau2[[#This Row],[Qté Vendu]] -> 1600000 | P34: =Tableau2[[#This Row],[Montant]]-Tableau2[[#This Row],[1er verst]]-Tableau2[[#This Row],[2èm verst]]-Tableau2[[#This Row],[3èm Verst]]-Tableau2[[#This Row],[4èm Verst]] -> 1600000
A35: C002 | B35: Balatane dare salam | C35: C002Balatane dare salam | D35: 2018-09-01 | E35: 22 | F35: 200 | G35: =4000*Tableau2[[#This Row],[Qté Vendu]] -> 800000 | P35: =Tableau2[[#This Row],[Montant]]-Tableau2[[#This Row],[1er verst]]-Tableau2[[#This Row],[2èm verst]]-Tableau2[[#This Row],[3èm Verst]]-Tableau2[[#This Row],[4èm Verst]] -> 800000
A36: C005 | B36: Adamou Yaro | C36: C005Adamou Yaro | D36: 2018-09-02 | E36: 21 | F36: 1000 | G36: 3900000 | P36: =Tableau2[[#This Row],[Montant]]-Tableau2[[#This Row],[1er verst]]-Tableau2[[#This Row],[2èm verst]]-Tableau2[[#This Row],[3èm Verst]]-Tableau2[[#This Row],[4èm Verst]] -> 3900000
A37: C003 | B37: Sani | C37: C003Sani | D37: 2018-09-02 | E37: 22 | F37: 437 | G37: 1748000 | H37: 1000000 | I37: 2018-09-03 | P37: =Tableau2[[#This Row],[Montant]]-Tableau2[[#This Row],[1er verst]]-Tableau2[[#This Row],[2èm verst]]-Tableau2[[#This Row],[3èm Verst]]-Tableau2[[#This Row],[4èm Verst]] -> 748000
G38: 0 | P38: =Tableau2[[#This Row],[Montant]]-Tableau2[[#This Row],[1er verst]]-Tableau2[[#This Row],[2èm verst]]-Tableau2[[#This Row],[3èm Verst]]-Tableau2[[#This Row],[4èm Verst]] -> 0
G39: 0 | P39: =Tableau2[[#This Row],[Montant]]-Tableau2[[#This Row],[1er verst]]-Tableau2[[#This Row],[2èm verst]]-Tableau2[[#This Row],[3èm Verst]]-Tableau2[[#This Row],[4èm Verst]] -> 0
G40: 0 | P40: =Tableau2[[#This Row],[Montant]]-Tableau2[[#This Row],[1er verst]]-Tableau2[[#This Row],[2èm verst]]-Tableau2[[#This Row],[3èm Verst]]-Tableau2[[#This Row],[4èm Verst]] -> 0
G41: 0 | P41: =Tableau2[[#This Row],[Montant]]-Tableau2[[#This Row],[1er verst]]-Tableau2[[#This Row],[2èm verst]]-Tableau2[[#This Row],[3èm Verst]]-Tableau2[[#This Row],[4èm Verst]] -> 0
G42: 0 | P42: =Tableau2[[#This Row],[Montant]]-Tableau2[[#This Row],[1er verst]]-Tableau2[[#This Row],[2èm verst]]-Tableau2[[#This Row],[3èm Verst]]-Tableau2[[#This Row],[4èm Verst]] -> 0
G43: 0 | P43: =Tableau2[[#This Row],[Montant]]-Tableau2[[#This Row],[1er verst]]-Tableau2[[#This Row],[2èm verst]]-Tableau2[[#This Row],[3èm Verst]]-Tableau2[[#This Row],[4èm Verst]] -> 0
G44: 0 | P44: =Tableau2[[#This Row],[Montant]]-Tableau2[[#This Row],[1er verst]]-Tableau2[[#This Row],[2èm verst]]-Tableau2[[#This Row],[3èm Verst]]-Tableau2[[#This Row],[4èm Verst]] -> 0
P45: =Tableau2[[#This Row],[Montant]]-Tableau2[[#This Row],[1er verst]]-Tableau2[[#This Row],[2èm verst]]-Tableau2[[#This Row],[3èm Verst]]-Tableau2[[#This Row],[4èm Verst]] -> 0
P46: =Tableau2[[#This Row],[Montant]]-Tableau2[[#This Row],[1er verst]]-Tableau2[[#This Row],[2èm verst]]-Tableau2[[#This Row],[3èm Verst]]-Tableau2[[#This Row],[4èm Verst]] -> 0
P47: =Tableau2[[#This Row],[Montant]]-Tableau2[[#This Row],[1er verst]]-Tableau2[[#This Row],[2èm verst]]-Tableau2[[#This Row],[3èm Verst]]-Tableau2[[#This Row],[4èm Verst]] -> 0
P48: =Tableau2[[#This Row],[Montant]]-Tableau2[[#This Row],[1er verst]]-Tableau2[[#This Row],[2èm verst]]-Tableau2[[#This Row],[3èm Verst]]-Tableau2[[#This Row],[4èm Verst]] -> 0
P49: =Tableau2[[#This Row],[Montant]]-Tableau2[[#This Row],[1er verst]]-Tableau2[[#This Row],[2èm verst]]-Tableau2[[#This Row],[3èm Verst]]-Tableau2[[#This Row],[4èm Verst]] -> 0
P50: =Tableau2[[#This Row],[Montant]]-Tableau2[[#This Row],[1er verst]]-Tableau2[[#This Row],[2èm verst]]-Tableau2[[#This Row],[3èm Verst]]-Tableau2[[#This Row],[4èm Verst]] -> 0
P51: =Tableau2[[#This Row],[Montant]]-Tableau2[[#This Row],[1er verst]]-Tableau2[[#This Row],[2èm verst]]-Tableau2[[#This Row],[3èm Verst]]-Tableau2[[#This Row],[4èm Verst]] -> 0
P52: =Tableau2[[#This Row],[Montant]]-Tableau2[[#This Row],[1er verst]]-Tableau2[[#This Row],[2èm verst]]-Tableau2[[#This Row],[3èm Verst]]-Tableau2[[#This Row],[4èm Verst]] -> 0
P53: =Tableau2[[#This Row],[Montant]]-Tableau2[[#This Row],[1er verst]]-Tableau2[[#This Row],[2èm verst]]-Tableau2[[#This Row],[3èm Verst]]-Tableau2[[#This Row],[4èm Verst]] -> 0
P54: =Tableau2[[#This Row],[Montant]]-Tableau2[[#This Row],[1er verst]]-Tableau2[[#This Row],[2èm verst]]-Tableau2[[#This Row],[3èm Verst]]-Tableau2[[#This Row],[4èm Verst]] -> 0
P55: =Tableau2[[#This Row],[Montant]]-Tableau2[[#This Row],[1er verst]]-Tableau2[[#This Row],[2èm verst]]-Tableau2[[#This Row],[3èm Verst]]-Tableau2[[#This Row],[4èm Verst]] -> 0
P56: =Tableau2[[#This Row],[Montant]]-Tableau2[[#This Row],[1er verst]]-Tableau2[[#This Row],[2èm verst]]-Tableau2[[#This Row],[3èm Verst]]-Tableau2[[#This Row],[4èm Verst]] -> 0
P57: =Tableau2[[#This Row],[Montant]]-Tableau2[[#This Row],[1er verst]]-Tableau2[[#This Row],[2èm verst]]-Tableau2[[#This Row],[3èm Verst]]-Tableau2[[#This Row],[4èm Verst]] -> 0
P58: =Tableau2[[#This Row],[Montant]]-Tableau2[[#This Row],[1er verst]]-Tableau2[[#This Row],[2èm verst]]-Tableau2[[#This Row],[3èm Verst]]-Tableau2[[#This Row],[4èm Verst]] -> 0
P59: =Tableau2[[#This Row],[Montant]]-Tableau2[[#This Row],[1er verst]]-Tableau2[[#This Row],[2èm verst]]-Tableau2[[#This Row],[3èm Verst]]-Tableau2[[#This Row],[4èm Verst]] -> 0
P60: =Tableau2[[#This Row],[Montant]]-Tableau2[[#This Row],[1er verst]]-Tableau2[[#This Row],[2èm verst]]-Tableau2[[#This Row],[3èm Verst]]-Tableau2[[#This Row],[4èm Verst]] -> 0
P61: =Tableau2[[#This Row],[Montant]]-Tableau2[[#This Row],[1er verst]]-Tableau2[[#This Row],[2èm verst]]-Tableau2[[#This Row],[3èm Verst]]-Tableau2[[#This Row],[4èm Verst]] -> 0
P62: =Tableau2[[#This Row],[Montant]]-Tableau2[[#This Row],[1er verst]]-Tableau2[[#This Row],[2èm verst]]-Tableau2[[#This Row],[3èm Verst]]-Tableau2[[#This Row],[4èm Verst]] -> 0
P63: =Tableau2[[#This Row],[Montant]]-Tableau2[[#This Row],[1er verst]]-Tableau2[[#This Row],[2èm verst]]-Tableau2[[#This Row],[3èm Verst]]-Tableau2[[#This Row],[4èm Verst]] -> 0
P64: =Tableau2[[#This Row],[Montant]]-Tableau2[[#This Row],[1er verst]]-Tableau2[[#This Row],[2èm verst]]-Tableau2[[#This Row],[3èm Verst]]-Tableau2[[#This Row],[4èm Verst]] -> 0
P65: =Tableau2[[#This Row],[Montant]]-Tableau2[[#This Row],[1er verst]]-Tableau2[[#This Row],[2èm verst]]-Tableau2[[#This Row],[3èm Verst]]-Tableau2[[#This Row],[4èm Verst]] -> 0
P66: =Tableau2[[#This Row],[Montant]]-Tableau2[[#This Row],[1er verst]]-Tableau2[[#This Row],[2èm verst]]-Tableau2[[#This Row],[3èm Verst]]-Tableau2[[#This Row],[4èm Verst]] -> 0
P67: =Tableau2[[#This Row],[Montant]]-Tableau2[[#This Row],[1er verst]]-Tableau2[[#This Row],[2èm verst]]-Tableau2[[#This Row],[3èm Verst]]-Tableau2[[#This Row],[4èm Verst]] -> 0
C68: =A:A&B:B ->  | P68: =Tableau2[[#This Row],[Montant]]-Tableau2[[#This Row],[1er verst]]-Tableau2[[#This Row],[2èm verst]]-Tableau2[[#This Row],[3èm Verst]]-Tableau2[[#This Row],[4èm Verst]] -> 0
P69: =Tableau2[[#This Row],[Montant]]-Tableau2[[#This Row],[1er verst]]-Tableau2[[#This Row],[2èm verst]]-Tableau2[[#This Row],[3èm Verst]]-Tableau2[[#This Row],[4èm Verst]] -> 0
P70: =Tableau2[[#This Row],[Montant]]-Tableau2[[#This Row],[1er verst]]-Tableau2[[#This Row],[2èm verst]]-Tableau2[[#This Row],[3èm Verst]]-Tableau2[[#This Row],[4èm Verst]] -> 0
P71: =Tableau2[[#This Row],[Montant]]-Tableau2[[#This Row],[1er verst]]-Tableau2[[#This Row],[2èm verst]]-Tableau2[[#This Row],[3èm Verst]]-Tableau2[[#This Row],[4èm Verst]] -> 0
P72: =Tableau2[[#This Row],[Montant]]-Tableau2[[#This Row],[1er verst]]-Tableau2[[#This Row],[2èm verst]]-Tableau2[[#This Row],[3èm Verst]]-Tableau2[[#This Row],[4èm Verst]] -> 0
P73: =Tableau2[[#This Row],[Montant]]-Tableau2[[#This Row],[1er verst]]-Tableau2[[#This Row],[2èm verst]]-Tableau2[[#This Row],[3èm Verst]]-Tableau2[[#This Row],[4èm Verst]] -> 0
P74: =Tableau2[[#This Row],[Montant]]-Tableau2[[#This Row],[1er verst]]-Tableau2[[#This Row],[2èm verst]]-Tableau2[[#This Row],[3èm Verst]]-Tableau2[[#This Row],[4èm Verst]] -> 0
P75: =Tableau2[[#This Row],[Montant]]-Tableau2[[#This Row],[1er verst]]-Tableau2[[#This Row],[2èm verst]]-Tableau2[[#This Row],[3èm Verst]]-Tableau2[[#This Row],[4èm Verst]] -> 0
P76: =Tableau2[[#This Row],[Montant]]-Tableau2[[#This Row],[1er verst]]-Tableau2[[#This Row],[2èm verst]]-Tableau2[[#This Row],[3èm Verst]]-Tableau2[[#This Row],[4èm Verst]] -> 0
P77: =Tableau2[[#This Row],[Montant]]-Tableau2[[#This Row],[1er verst]]-Tableau2[[#This Row],[2èm verst]]-Tableau2[[#This Row],[3èm Verst]]-Tableau2[[#This Row],[4èm Verst]] -> 0
P78: =Tableau2[[#This Row],[Montant]]-Tableau2[[#This Row],[1er verst]]-Tableau2[[#This Row],[2èm verst]]-Tableau2[[#This Row],[3èm Verst]]-Tableau2[[#This Row],[4èm Verst]] -> 0
P79: =Tableau2[[#This Row],[Montant]]-Tableau2[[#This Row],[1er verst]]-Tableau2[[#This Row],[2èm verst]]-Tableau2[[#This Row],[3èm Verst]]-Tableau2[[#This Row],[4èm Verst]] -> 0
P80: =Tableau2[[#This Row],[Montant]]-Tableau2[[#This Row],[1er verst]]-Tableau2[[#This Row],[2èm verst]]-Tableau2[[#This Row],[3èm Verst]]-Tableau2[[#This Row],[4èm Verst]] -> 0
P81: =Tableau2[[#This Row],[Montant]]-Tableau2[[#This Row],[1er verst]]-Tableau2[[#This Row],[2èm verst]]-Tableau2[[#This Row],[3èm Verst]]-Tableau2[[#This Row],[4èm Verst]] -> 0
P82: =Tableau2[[#This Row],[Montant]]-Tableau2[[#This Row],[1er verst]]-Tableau2[[#This Row],[2èm verst]]-Tableau2[[#This Row],[3èm Verst]]-Tableau2[[#This Row],[4èm Verst]] -> 0
P83: =Tableau2[[#This Row],[Montant]]-Tableau2[[#This Row],[1er verst]]-Tableau2[[#This Row],[2èm verst]]-Tableau2[[#This Row],[3èm Verst]]-Tableau2[[#This Row],[4èm Verst]] -> 0
P84: =Tableau2[[#This Row],[Montant]]-Tableau2[[#This Row],[1er verst]]-Tableau2[[#This Row],[2èm verst]]-Tableau2[[#This Row],[3èm Verst]]-Tableau2[[#This Row],[4èm Verst]] -> 0
P85: =Tableau2[[#This Row],[Montant]]-Tableau2[[#This Row],[1er verst]]-Tableau2[[#This Row],[2èm verst]]-Tableau2[[#This Row],[3èm Verst]]-Tableau2[[#This Row],[4èm Verst]] -> 0
P86: =Tableau2[[#This Row],[Montant]]-Tableau2[[#This Row],[1er verst]]-Tableau2[[#This Row],[2èm verst]]-Tableau2[[#This Row],[3èm Verst]]-Tableau2[[#This Row],[4èm Verst]] -> 0
P87: =Tableau2[[#This Row],[Montant]]-Tableau2[[#This Row],[1er verst]]-Tableau2[[#This Row],[2èm verst]]-Tableau2[[#This Row],[3èm Verst]]-Tableau2[[#This Row],[4èm Verst]] -> 0
P88: =Tableau2[[#This Row],[Montant]]-Tableau2[[#This Row],[1er verst]]-Tableau2[[#This Row],[2èm verst]]-Tableau2[[#This Row],[3èm Verst]]-Tableau2[[#This Row],[4èm Verst]] -> 0
P89: =Tableau2[[#This Row],[Montant]]-Tableau2[[#This Row],[1er verst]]-Tableau2[[#This Row],[2èm verst]]-Tableau2[[#This Row],[3èm Verst]]-Tableau2[[#This Row],[4èm Verst]] -> 0
P90: =Tableau2[[#This Row],[Montant]]-Tableau2[[#This Row],[1er verst]]-Tableau2[[#This Row],[2èm verst]]-Tableau2[[#This Row],[3èm Verst]]-Tableau2[[#This Row],[4èm Verst]] -> 0
P91: =Tableau2[[#This Row],[Montant]]-Tableau2[[#This Row],[1er verst]]-Tableau2[[#This Row],[2èm verst]]-Tableau2[[#This Row],[3èm Verst]]-Tableau2[[#This Row],[4èm Verst]] -> 0
P92: =Tableau2[[#This Row],[Montant]]-Tableau2[[#This Row],[1er verst]]-Tableau2[[#This Row],[2èm verst]]-Tableau2[[#This Row],[3èm Verst]]-Tableau2[[#This Row],[4èm Verst]] -> 0
P93: =Tableau2[[#This Row],[Montant]]-Tableau2[[#This Row],[1er verst]]-Tableau2[[#This Row],[2èm verst]]-Tableau2[[#This Row],[3èm Verst]]-Tableau2[[#This Row],[4èm Verst]] -> 0
P94: =Tableau2[[#This Row],[Montant]]-Tableau2[[#This Row],[1er verst]]-Tableau2[[#This Row],[2èm verst]]-Tableau2[[#This Row],[3èm Verst]]-Tableau2[[#This Row],[4èm Verst]] -> 0
P95: =Tableau2[[#This Row],[Montant]]-Tableau2[[#This Row],[1er verst]]-Tableau2[[#This Row],[2èm verst]]-Tableau2[[#This Row],[3èm Verst]]-Tableau2[[#This Row],[4èm Verst]] -> 0
P96: =Tableau2[[#This Row],[Montant]]-Tableau2[[#This Row],[1er verst]]-Tableau2[[#This Row],[2èm verst]]-Tableau2[[#This Row],[3èm Verst]]-Tableau2[[#This Row],[4èm Verst]] -> 0
P97: =Tableau2[[#This Row],[Montant]]-Tableau2[[#This Row],[1er verst]]-Tableau2[[#This Row],[2èm verst]]-Tableau2[[#This Row],[3èm Verst]]-Tableau2[[#This Row],[4èm Verst]] -> 0
P98: =Tableau2[[#This Row],[Montant]]-Tableau2[[#This Row],[1er verst]]-Tableau2[[#This Row],[2èm verst]]-Tableau2[[#This Row],[3èm Verst]]-Tableau2[[#This Row],[4èm Verst]] -> 0
P99: =Tableau2[[#This Row],[Montant]]-Tableau2[[#This Row],[1er verst]]-Tableau2[[#This Row],[2èm verst]]-Tableau2[[#This Row],[3èm Verst]]-Tableau2[[#This Row],[4èm Verst]] -> 0
P100: =Tableau2[[#This Row],[Montant]]-Tableau2[[#This Row],[1er verst]]-Tableau2[[#This Row],[2èm verst]]-Tableau2[[#This Row],[3èm Verst]]-Tableau2[[#This Row],[4èm Verst]] -> 0
P101: =Tableau2[[#This Row],[Montant]]-Tableau2[[#This Row],[1er verst]]-Tableau2[[#This Row],[2èm verst]]-Tableau2[[#This Row],[3èm Verst]]-Tableau2[[#This Row],[4èm Verst]] -> 0
P102: =Tableau2[[#This Row],[Montant]]-Tableau2[[#This Row],[1er verst]]-Tableau2[[#This Row],[2èm verst]]-Tableau2[[#This Row],[3èm Verst]]-Tableau2[[#This Row],[4èm Verst]] -> 0
P103: =Tableau2[[#This Row],[Montant]]-Tableau2[[#This Row],[1er verst]]-Tableau2[[#This Row],[2èm verst]]-Tableau2[[#This Row],[3èm Verst]]-Tableau2[[#This Row],[4èm Verst]] -> 0
P104: =Tableau2[[#This Row],[Montant]]-Tableau2[[#This Row],[1er verst]]-Tableau2[[#This Row],[2èm verst]]-Tableau2[[#This Row],[3èm Verst]]-Tableau2[[#This Row],[4èm Verst]] -> 0
P105: =Tableau2[[#This Row],[Montant]]-Tableau2[[#This Row],[1er verst]]-Tableau2[[#This Row],[2èm verst]]-Tableau2[[#This Row],[3èm Verst]]-Tableau2[[#This Row],[4èm Verst]] -> 0
P106: =Tableau2[[#This Row],[Montant]]-Tableau2[[#This Row],[1er verst]]-Tableau2[[#This Row],[2èm verst]]-Tableau2[[#This Row],[3èm Verst]]-Tableau2[[#This Row],[4èm Verst]] -> 0
P107: =Tableau2[[#This Row],[Montant]]-Tableau2[[#This Row],[1er verst]]-Tableau2[[#This Row],[2èm verst]]-Tableau2[[#This Row],[3èm Verst]]-Tableau2[[#This Row],[4èm Verst]] -> 0
P108: =Tableau2[[#This Row],[Montant]]-Tableau2[[#This Row],[1er verst]]-Tableau2[[#This Row],[2èm verst]]-Tableau2[[#This Row],[3èm Verst]]-Tableau2[[#This Row],[4èm Verst]] -> 0
P109: =Tableau2[[#This Row],[Montant]]-Tableau2[[#This Row],[1er verst]]-Tableau2[[#This Row],[2èm verst]]-Tableau2[[#This Row],[3èm Verst]]-Tableau2[[#This Row],[4èm Verst]] -> 0
P110: =Tableau2[[#This Row],[Montant]]-Tableau2[[#This Row],[1er verst]]-Tableau2[[#This Row],[2èm verst]]-Tableau2[[#This Row],[3èm Verst]]-Tableau2[[#This Row],[4èm Verst]] -> 0
P111: =Tableau2[[#This Row],[Montant]]-Tableau2[[#This Row],[1er verst]]-Tableau2[[#This Row],[2èm verst]]-Tableau2[[#This Row],[3èm Verst]]-Tableau2[[#This Row],[4èm Verst]] -> 0
P112: =Tableau2[[#This Row],[Montant]]-Tableau2[[#This Row],[1er verst]]-Tableau2[[#This Row],[2èm verst]]-Tableau2[[#This Row],[3èm Verst]]-Tableau2[[#This Row],[4èm Verst]] -> 0
P113: =Tableau2[[#This Row],[Montant]]-Tableau2[[#This Row],[1er verst]]-Tableau2[[#This Row],[2èm verst]]-Tableau2[[#This Row],[3èm Verst]]-Tableau2[[#This Row],[4èm Verst]] -> 0
P114: =Tableau2[[#This Row],[Montant]]-Tableau2[[#This Row],[1er verst]]-Tableau2[[#This Row],[2èm verst]]-Tableau2[[#This Row],[3èm Verst]]-Tableau2[[#This Row],[4èm Verst]] -> 0
P115: =Tableau2[[#This Row],[Montant]]-Tableau2[[#This Row],[1er verst]]-Tableau2[[#This Row],[2èm verst]]-Tableau2[[#This Row],[3èm Verst]]-Tableau2[[#This Row],[4èm Verst]] -> 0
P116: =Tableau2[[#This Row],[Montant]]-Tableau2[[#This Row],[1er verst]]-Tableau2[[#This Row],[2èm verst]]-Tableau2[[#This Row],[3èm Verst]]-Tableau2[[#This Row],[4èm Verst]] -> 0
P117: =Tableau2[[#This Row],[Montant]]-Tableau2[[#This Row],[1er verst]]-Tableau2[[#This Row],[2èm verst]]-Tableau2[[#This Row],[3èm Verst]]-Tableau2[[#This Row],[4èm Verst]] -> 0
P118: =Tableau2[[#This Row],[Montant]]-Tableau2[[#This Row],[1er verst]]-Tableau2[[#This Row],[2èm verst]]-Tableau2[[#This Row],[3èm Verst]]-Tableau2[[#This Row],[4èm Verst]] -> 0
P119: =Tableau2[[#This Row],[Montant]]-Tableau2[[#This Row],[1er verst]]-Tableau2[[#This Row],[2èm verst]]-Tableau2[[#This Row],[3èm Verst]]-Tableau2[[#This Row],[4èm Verst]] -> 0
P120: =Tableau2[[#This Row],[Montant]]-Tableau2[[#This Row],[1er verst]]-Tableau2[[#This Row],[2èm verst]]-Tableau2[[#This Row],[3èm Verst]]-Tableau2[[#This Row],[4èm Verst]] -> 0
P121: =Tableau2[[#This Row],[Montant]]-Tableau2[[#This Row],[1er verst]]-Tableau2[[#This Row],[2èm verst]]-Tableau2[[#This Row],[3èm Verst]]-Tableau2[[#This Row],[4èm Verst]] -> 0
P122: =Tableau2[[#This Row],[Montant]]-Tableau2[[#This Row],[1er verst]]-Tableau2[[#This Row],[2èm verst]]-Tableau2[[#This Row],[3èm Verst]]-Tableau2[[#This Row],[4èm Verst]] -> 0
P123: =Tableau2[[#This Row],[Montant]]-Tableau2[[#This Row],[1er verst]]-Tableau2[[#This Row],[2èm verst]]-Tableau2[[#This Row],[3èm Verst]]-Tableau2[[#This Row],[4èm Verst]] -> 0
P124: =Tableau2[[#This Row],[Montant]]-Tableau2[[#This Row],[1er verst]]-Tableau2[[#This Row],[2èm verst]]-Tableau2[[#This Row],[3èm Verst]]-Tableau2[[#This Row],[4èm Verst]] -> 0
P125: =Tableau2[[#This Row],[Montant]]-Tableau2[[#This Row],[1er verst]]-Tableau2[[#This Row],[2èm verst]]-Tableau2[[#This Row],[3èm Verst]]-Tableau2[[#This Row],[4èm Verst]] -> 0
P126: =Tableau2[[#This Row],[Montant]]-Tableau2[[#This Row],[1er verst]]-Tableau2[[#This Row],[2èm verst]]-Tableau2[[#This Row],[3èm Verst]]-Tableau2[[#This Row],[4èm Verst]] -> 0
P127: =Tableau2[[#This Row],[Montant]]-Tableau2[[#This Row],[1er verst]]-Tableau2[[#This Row],[2èm verst]]-Tableau2[[#This Row],[3èm Verst]]-Tableau2[[#This Row],[4èm Verst]] -> 0
P128: =Tableau2[[#This Row],[Montant]]-Tableau2[[#This Row],[1er verst]]-Tableau2[[#This Row],[2èm verst]]-Tableau2[[#This Row],[3èm Verst]]-Tableau2[[#This Row],[4èm Verst]] -> 0
P129: =Tableau2[[#This Row],[Montant]]-Tableau2[[#This Row],[1er verst]]-Tableau2[[#This Row],[2èm verst]]-Tableau2[[#This Row],[3èm Verst]]-Tableau2[[#This Row],[4èm Verst]] -> 0
P130: =Tableau2[[#This Row],[Montant]]-Tableau2[[#This Row],[1er verst]]-Tableau2[[#This Row],[2èm verst]]-Tableau2[[#This Row],[3èm Verst]]-Tableau2[[#This Row],[4èm Verst]] -> 0
P131: =Tableau2[[#This Row],[Montant]]-Tableau2[[#This Row],[1er verst]]-Tableau2[[#This Row],[2èm verst]]-Tableau2[[#This Row],[3èm Verst]]-Tableau2[[#This Row],[4èm Verst]] -> 0
C132: =A:A&B:B ->  | P132: =Tableau2[[#This Row],[Montant]]-Tableau2[[#This Row],[1er verst]]-Tableau2[[#This Row],[2èm verst]]-Tableau2[[#This Row],[3èm Verst]]-Tableau2[[#This Row],[4èm Verst]] -> 0
P133: =Tableau2[[#This Row],[Montant]]-Tableau2[[#This Row],[1er verst]]-Tableau2[[#This Row],[2èm verst]]-Tableau2[[#This Row],[3èm Verst]]-Tableau2[[#This Row],[4èm Verst]] -> 0
P134: =Tableau2[[#This Row],[Montant]]-Tableau2[[#This Row],[1er verst]]-Tableau2[[#This Row],[2èm verst]]-Tableau2[[#This Row],[3èm Verst]]-Tableau2[[#This Row],[4èm Verst]] -> 0
P135: =Tableau2[[#This Row],[Montant]]-Tableau2[[#This Row],[1er verst]]-Tableau2[[#This Row],[2èm verst]]-Tableau2[[#This Row],[3èm Verst]]-Tableau2[[#This Row],[4èm Verst]] -> 0
P136: =Tableau2[[#This Row],[Montant]]-Tableau2[[#This Row],[1er verst]]-Tableau2[[#This Row],[2èm verst]]-Tableau2[[#This Row],[3èm Verst]]-Tableau2[[#This Row],[4èm Verst]] -> 0
P137: =Tableau2[[#This Row],[Montant]]-Tableau2[[#This Row],[1er verst]]-Tableau2[[#This Row],[2èm verst]]-Tableau2[[#This Row],[3èm Verst]]-Tableau2[[#This Row],[4èm Verst]] -> 0
P138: =Tableau2[[#This Row],[Montant]]-Tableau2[[#This Row],[1er verst]]-Tableau2[[#This Row],[2èm verst]]-Tableau2[[#This Row],[3èm Verst]]-Tableau2[[#This Row],[4èm Verst]] -> 0
P139: =Tableau2[[#This Row],[Montant]]-Tableau2[[#This Row],[1er verst]]-Tableau2[[#This Row],[2èm verst]]-Tableau2[[#This Row],[3èm Verst]]-Tableau2[[#This Row],[4èm Verst]] -> 0
P140: =Tableau2[[#This Row],[Montant]]-Tableau2[[#This Row],[1er verst]]-Tableau2[[#This Row],[2èm verst]]-Tableau2[[#This Row],[3èm Verst]]-Tableau2[[#This Row],[4èm Verst]] -> 0
P141: =Tableau2[[#This Row],[Montant]]-Tableau2[[#This Row],[1er verst]]-Tableau2[[#This Row],[2èm verst]]-Tableau2[[#This Row],[3èm Verst]]-Tableau2[[#This Row],[4èm Verst]] -> 0
P142: =Tableau2[[#This Row],[Montant]]-Tableau2[[#This Row],[1er verst]]-Tableau2[[#This Row],[2èm verst]]-Tableau2[[#This Row],[3èm Verst]]-Tableau2[[#This Row],[4èm Verst]] -> 0
P143: =Tableau2[[#This Row],[Montant]]-Tableau2[[#This Row],[1er verst]]-Tableau2[[#This Row],[2èm verst]]-Tableau2[[#This Row],[3èm Verst]]-Tableau2[[#This Row],[4èm Verst]] -> 0
P144: =Tableau2[[#This Row],[Montant]]-Tableau2[[#This Row],[1er verst]]-Tableau2[[#This Row],[2èm verst]]-Tableau2[[#This Row],[3èm Verst]]-Tableau2[[#This Row],[4èm Verst]] -> 0
P145: =Tableau2[[#This Row],[Montant]]-Tableau2[[#This Row],[1er verst]]-Tableau2[[#This Row],[2èm verst]]-Tableau2[[#This Row],[3èm Verst]]-Tableau2[[#This Row],[4èm Verst]] -> 0
P146: =Tableau2[[#This Row],[Montant]]-Tableau2[[#This Row],[1er verst]]-Tableau2[[#This Row],[2èm verst]]-Tableau2[[#This Row],[3èm Verst]]-Tableau2[[#This Row],[4èm Verst]] -> 0
P147: =Tableau2[[#This Row],[Montant]]-Tableau2[[#This Row],[1er verst]]-Tableau2[[#This Row],[2èm verst]]-Tableau2[[#This Row],[3èm Verst]]-Tableau2[[#This Row],[4èm Verst]] -> 0
P148: =Tableau2[[#This Row],[Montant]]-Tableau2[[#This Row],[1er verst]]-Tableau2[[#This Row],[2èm verst]]-Tableau2[[#This Row],[3èm Verst]]-Tableau2[[#This Row],[4èm Verst]] -> 0
P149: =Tableau2[[#This Row],[Montant]]-Tableau2[[#This Row],[1er verst]]-Tableau2[[#This Row],[2èm verst]]-Tableau2[[#This Row],[3èm Verst]]-Tableau2[[#This Row],[4èm Verst]] -> 0
P150: =Tableau2[[#This Row],[Montant]]-Tableau2[[#This Row],[1er verst]]-Tableau2[[#This Row],[2èm verst]]-Tableau2[[#This Row],[3èm Verst]]-Tableau2[[#This Row],[4èm Verst]] -> 0
P151: =Tableau2[[#This Row],[Montant]]-Tableau2[[#This Row],[1er verst]]-Tableau2[[#This Row],[2èm verst]]-Tableau2[[#This Row],[3èm Verst]]-Tableau2[[#This Row],[4èm Verst]] -> 0
P152: =Tableau2[[#This Row],[Montant]]-Tableau2[[#This Row],[1er verst]]-Tableau2[[#This Row],[2èm verst]]-Tableau2[[#This Row],[3èm Verst]]-Tableau2[[#This Row],[4èm Verst]] -> 0
P153: =Tableau2[[#This Row],[Montant]]-Tableau2[[#This Row],[1er verst]]-Tableau2[[#This Row],[2èm verst]]-Tableau2[[#This Row],[3èm Verst]]-Tableau2[[#This Row],[4èm Verst]] -> 0
P154: =Tableau2[[#This Row],[Montant]]-Tableau2[[#This Row],[1er verst]]-Tableau2[[#This Row],[2èm verst]]-Tableau2[[#This Row],[3èm Verst]]-Tableau2[[#This Row],[4èm Verst]] -> 0
P155: =Tableau2[[#This Row],[Montant]]-Tableau2[[#This Row],[1er verst]]-Tableau2[[#This Row],[2èm verst]]-Tableau2[[#This Row],[3èm Verst]]-Tableau2[[#This Row],[4èm Verst]] -> 0
P156: =Tableau2[[#This Row],[Montant]]-Tableau2[[#This Row],[1er verst]]-Tableau2[[#This Row],[2èm verst]]-Tableau2[[#This Row],[3èm Verst]]-Tableau2[[#This Row],[4èm Verst]] -> 0
P157: =Tableau2[[#This Row],[Montant]]-Tableau2[[#This Row],[1er verst]]-Tableau2[[#This Row],[2èm verst]]-Tableau2[[#This Row],[3èm Verst]]-Tableau2[[#This Row],[4èm Verst]] -> 0
P158: =Tableau2[[#This Row],[Montant]]-Tableau2[[#This Row],[1er verst]]-Tableau2[[#This Row],[2èm verst]]-Tableau2[[#This Row],[3èm Verst]]-Tableau2[[#This Row],[4èm Verst]] -> 0
P159: =Tableau2[[#This Row],[Montant]]-Tableau2[[#This Row],[1er verst]]-Tableau2[[#This Row],[2èm verst]]-Tableau2[[#This Row],[3èm Verst]]-Tableau2[[#This Row],[4èm Verst]] -> 0
P160: =Tableau2[[#This Row],[Montant]]-Tableau2[[#This Row],[1er verst]]-Tableau2[[#This Row],[2èm verst]]-Tableau2[[#This Row],[3èm Verst]]-Tableau2[[#This Row],[4èm Verst]] -> 0
P161: =Tableau2[[#This Row],[Montant]]-Tableau2[[#This Row],[1er verst]]-Tableau2[[#This Row],[2èm verst]]-Tableau2[[#This Row],[3èm Verst]]-Tableau2[[#This Row],[4èm Verst]] -> 0
P162: =Tableau2[[#This Row],[Montant]]-Tableau2[[#This Row],[1er verst]]-Tableau2[[#This Row],[2èm verst]]-Tableau2[[#This Row],[3èm Verst]]-Tableau2[[#This Row],[4èm Verst]] -> 0
P163: =Tableau2[[#This Row],[Montant]]-Tableau2[[#This Row],[1er verst]]-Tableau2[[#This Row],[2èm verst]]-Tableau2[[#This Row],[3èm Verst]]-Tableau2[[#This Row],[4èm Verst]] -> 0
P164: =Tableau2[[#This Row],[Montant]]-Tableau2[[#This Row],[1er verst]]-Tableau2[[#This Row],[2èm verst]]-Tableau2[[#This Row],[3èm Verst]]-Tableau2[[#This Row],[4èm Verst]] -> 0
P165: =Tableau2[[#This Row],[Montant]]-Tableau2[[#This Row],[1er verst]]-Tableau2[[#This Row],[2èm verst]]-Tableau2[[#This Row],[3èm Verst]]-Tableau2[[#This Row],[4èm Verst]] -> 0
P166: =Tableau2[[#This Row],[Montant]]-Tableau2[[#This Row],[1er verst]]-Tableau2[[#This Row],[2èm verst]]-Tableau2[[#This Row],[3èm Verst]]-Tableau2[[#This Row],[4èm Verst]] -> 0
P167: =Tableau2[[#This Row],[Montant]]-Tableau2[[#This Row],[1er verst]]-Tableau2[[#This Row],[2èm verst]]-Tableau2[[#This Row],[3èm Verst]]-Tableau2[[#This Row],[4èm Verst]] -> 0
P168: =Tableau2[[#This Row],[Montant]]-Tableau2[[#This Row],[1er verst]]-Tableau2[[#This Row],[2èm verst]]-Tableau2[[#This Row],[3èm Verst]]-Tableau2[[#This Row],[4èm Verst]] -> 0
P169: =Tableau2[[#This Row],[Montant]]-Tableau2[[#This Row],[1er verst]]-Tableau2[[#This Row],[2èm verst]]-Tableau2[[#This Row],[3èm Verst]]-Tableau2[[#This Row],[4èm Verst]] -> 0
P170: =Tableau2[[#This Row],[Montant]]-Tableau2[[#This Row],[1er verst]]-Tableau2[[#This Row],[2èm verst]]-Tableau2[[#This Row],[3èm Verst]]-Tableau2[[#This Row],[4èm Verst]] -> 0
P171: =Tableau2[[#This Row],[Montant]]-Tableau2[[#This Row],[1er verst]]-Tableau2[[#This Row],[2èm verst]]-Tableau2[[#This Row],[3èm Verst]]-Tableau2[[#This Row],[4èm Verst]] -> 0
P172: =Tableau2[[#This Row],[Montant]]-Tableau2[[#This Row],[1er verst]]-Tableau2[[#This Row],[2èm verst]]-Tableau2[[#This Row],[3èm Verst]]-Tableau2[[#This Row],[4èm Verst]] -> 0
P173: =Tableau2[[#This Row],[Montant]]-Tableau2[[#This Row],[1er verst]]-Tableau2[[#This Row],[2èm verst]]-Tableau2[[#This Row],[3èm Verst]]-Tableau2[[#This Row],[4èm Verst]] -> 0
P174: =Tableau2[[#This Row],[Montant]]-Tableau2[[#This Row],[1er verst]]-Tableau2[[#This Row],[2èm verst]]-Tableau2[[#This Row],[3èm Verst]]-Tableau2[[#This Row],[4èm Verst]] -> 0
P175: =Tableau2[[#This Row],[Montant]]-Tableau2[[#This Row],[1er verst]]-Tableau2[[#This Row],[2èm verst]]-Tableau2[[#This Row],[3èm Verst]]-Tableau2[[#This Row],[4èm Verst]] -> 0
P176: =Tableau2[[#This Row],[Montant]]-Tableau2[[#This Row],[1er verst]]-Tableau2[[#This Row],[2èm verst]]-Tableau2[[#This Row],[3èm Verst]]-Tableau2[[#This Row],[4èm Verst]] -> 0
P177: =Tableau2[[#This Row],[Montant]]-Tableau2[[#This Row],[1er verst]]-Tableau2[[#This Row],[2èm verst]]-Tableau2[[#This Row],[3èm Verst]]-Tableau2[[#This Row],[4èm Verst]] -> 0
P178: =Tableau2[[#This Row],[Montant]]-Tableau2[[#This Row],[1er verst]]-Tableau2[[#This Row],[2èm verst]]-Tableau2[[#This Row],[3èm Verst]]-Tableau2[[#This Row],[4èm Verst]] -> 0
P179: =Tableau2[[#This Row],[Montant]]-Tableau2[[#This Row],[1er verst]]-Tableau2[[#This Row],[2èm verst]]-Tableau2[[#This Row],[3èm Verst]]-Tableau2[[#This Row],[4èm Verst]] -> 0
P180: =Tableau2[[#This Row],[Montant]]-Tableau2[[#This Row],[1er verst]]-Tableau2[[#This Row],[2èm verst]]-Tableau2[[#This Row],[3èm Verst]]-Tableau2[[#This Row],[4èm Verst]] -> 0
P181: =Tableau2[[#This Row],[Montant]]-Tableau2[[#This Row],[1er verst]]-Tableau2[[#This Row],[2èm verst]]-Tableau2[[#This Row],[3èm Verst]]-Tableau2[[#This Row],[4èm Verst]] -> 0
P182: =Tableau2[[#This Row],[Montant]]-Tableau2[[#This Row],[1er verst]]-Tableau2[[#This Row],[2èm verst]]-Tableau2[[#This Row],[3èm Verst]]-Tableau2[[#This Row],[4èm Verst]] -> 0
P183: =Tableau2[[#This Row],[Montant]]-Tableau2[[#This Row],[1er verst]]-Tableau2[[#This Row],[2èm verst]]-Tableau2[[#This Row],[3èm Verst]]-Tableau2[[#This Row],[4èm Verst]] -> 0
P184: =Tableau2[[#This Row],[Montant]]-Tableau2[[#This Row],[1er verst]]-Tableau2[[#This Row],[2èm verst]]-Tableau2[[#This Row],[3èm Verst]]-Tableau2[[#This Row],[4èm Verst]] -> 0
P185: =Tableau2[[#This Row],[Montant]]-Tableau2[[#This Row],[1er verst]]-Tableau2[[#This Row],[2èm verst]]-Tableau2[[#This Row],[3èm Verst]]-Tableau2[[#This Row],[4èm Verst]] -> 0
P186: =Tableau2[[#This Row],[Montant]]-Tableau2[[#This Row],[1er verst]]-Tableau2[[#This Row],[2èm verst]]-Tableau2[[#This Row],[3èm Verst]]-Tableau2[[#This Row],[4èm Verst]] -> 0
P187: =Tableau2[[#This Row],[Montant]]-Tableau2[[#This Row],[1er verst]]-Tableau2[[#This Row],[2èm verst]]-Tableau2[[#This Row],[3èm Verst]]-Tableau2[[#This Row],[4èm Verst]] -> 0
P188: =Tableau2[[#This Row],[Montant]]-Tableau2[[#This Row],[1er verst]]-Tableau2[[#This Row],[2èm verst]]-Tableau2[[#This Row],[3èm Verst]]-Tableau2[[#This Row],[4èm Verst]] -> 0
P189: =Tableau2[[#This Row],[Montant]]-Tableau2[[#This Row],[1er verst]]-Tableau2[[#This Row],[2èm verst]]-Tableau2[[#This Row],[3èm Verst]]-Tableau2[[#This Row],[4èm Verst]] -> 0
P190: =Tableau2[[#This Row],[Montant]]-Tableau2[[#This Row],[1er verst]]-Tableau2[[#This Row],[2èm verst]]-Tableau2[[#This Row],[3èm Verst]]-Tableau2[[#This Row],[4èm Verst]] -> 0
P191: =Tableau2[[#This Row],[Montant]]-Tableau2[[#This Row],[1er verst]]-Tableau2[[#This Row],[2èm verst]]-Tableau2[[#This Row],[3èm Verst]]-Tableau2[[#This Row],[4èm Verst]] -> 0
P192: =Tableau2[[#This Row],[Montant]]-Tableau2[[#This Row],[1er verst]]-Tableau2[[#This Row],[2èm verst]]-Tableau2[[#This Row],[3èm Verst]]-Tableau2[[#This Row],[4èm Verst]] -> 0
P193: =Tableau2[[#This Row],[Montant]]-Tableau2[[#This Row],[1er verst]]-Tableau2[[#This Row],[2èm verst]]-Tableau2[[#This Row],[3èm Verst]]-Tableau2[[#This Row],[4èm Verst]] -> 0
P194: =Tableau2[[#This Row],[Montant]]-Tableau2[[#This Row],[1er verst]]-Tableau2[[#This Row],[2èm verst]]-Tableau2[[#This Row],[3èm Verst]]-Tableau2[[#This Row],[4èm Verst]] -> 0
P195: =Tableau2[[#This Row],[Montant]]-Tableau2[[#This Row],[1er verst]]-Tableau2[[#This Row],[2èm verst]]-Tableau2[[#This Row],[3èm Verst]]-Tableau2[[#This Row],[4èm Verst]] -> 0
C196: =A:A&B:B ->  | P196: =Tableau2[[#This Row],[Montant]]-Tableau2[[#This Row],[1er verst]]-Tableau2[[#This Row],[2èm verst]]-Tableau2[[#This Row],[3èm Verst]]-Tableau2[[#This Row],[4èm Verst]] -> 0
P197: =Tableau2[[#This Row],[Montant]]-Tableau2[[#This Row],[1er verst]]-Tableau2[[#This Row],[2èm verst]]-Tableau2[[#This Row],[3èm Verst]]-Tableau2[[#This Row],[4èm Verst]] -> 0
P198: =Tableau2[[#This Row],[Montant]]-Tableau2[[#This Row],[1er verst]]-Tableau2[[#This Row],[2èm verst]]-Tableau2[[#This Row],[3èm Verst]]-Tableau2[[#This Row],[4èm Verst]] -> 0
P199: =Tableau2[[#This Row],[Montant]]-Tableau2[[#This Row],[1er verst]]-Tableau2[[#This Row],[2èm verst]]-Tableau2[[#This Row],[3èm Verst]]-Tableau2[[#This Row],[4èm Verst]] -> 0
P200: =Tableau2[[#This Row],[Montant]]-Tableau2[[#This Row],[1er verst]]-Tableau2[[#This Row],[2èm verst]]-Tableau2[[#This Row],[3èm Verst]]-Tableau2[[#This Row],[4èm Verst]] -> 0
... 1368 more rows
